Account Number,Cost Centre,Cost Centre Description,Subjective,Subjective Description,Reference,Date,Amount,Vendor Number,Vendor Description
1.01221E+15,1221,Paralympic Legacy,60447,Events & Community Participation,2384,17/08/2016,"150,000.00",100150,GREENWICH+DOCKLANDS INTERNATIONAL FESTIV
1.01181E+15,1180,Sweeping & Cleansing,60154,Horticultural & Sweeping Contract,OP/I053554,22/08/2016,"120,577.46",100328,SUEZ
1.01181E+15,1180,Sweeping & Cleansing,60154,Horticultural & Sweeping Contract,30409667,20/09/2016,"119,140.32",100328,SUEZ
1.01181E+15,1180,Sweeping & Cleansing,60154,Horticultural & Sweeping Contract,OP/I053496,27/07/2016,"118,975.32",100328,SUEZ
1.01024E+15,1024,Contingency Items,60569,Contribution to Commuted Sums,CONTRIBUTI,25/08/2016,"102,733.99",100696,FASTER PAYMENTS
1.01154E+15,1154,Legal Services,60011,Agency Staff,702981077,29/09/2016,"81,792.83",100156,HARROW COUNCIL
1.01048E+15,1048,Waitrose MSCP,60498,Refunds of Car Park Fees,7011015034,05/09/2016,"79,604.10",100387,WAITROSE
1.01264E+15,1264,Housing Benefit Administration,60201,Equipment,8705726,25/07/2016,"62,463.60",100786,SALESFORCE
1.01168E+15,1168,Central Staff Costs,60007,Superannuation Contribution,2220001938,28/09/2016,"60,718.68",100058,BUCKS COUNTY COUNCIL GENERAL ACCOUNT
1.01107E+15,1107,Bus Station,60075,Service Charge,0351-194959,11/08/2016,"51,884.12",101454,MONTAGU EVANS LLP
1.01048E+15,1048,Waitrose MSCP,60498,Refunds of Car Park Fees,7011015069,05/09/2016,"51,545.50",100387,WAITROSE
1.01268E+15,1268,Finance (Governance),60621,FIMS Software,U001133,27/09/2016,"49,438.00",100356,TECHNOLOGY ONE UK LTD
1.01135E+15,1135,Salix Finance,60697,Salix-Friarscroft MSCP Phase 2 Lighting,773,12/07/2016,"46,681.00",100854,INTERLED LIGHTING LTD
1.01114E+15,1113,Gateway,60102,Electricity,E4610051,19/09/2016,"44,551.05",101169,LASER- KENT COUNTY COUNCIL
1.01181E+15,1180,Sweeping & Cleansing,60154,Horticultural & Sweeping Contract,53098,31/08/2016,"44,487.97",100256,JOHN O'CONNOR (GROUNDS MAIN'T) LIMITED
1.01181E+15,1180,Sweeping & Cleansing,60154,Horticultural & Sweeping Contract,53195,22/09/2016,"44,487.97",100256,JOHN O'CONNOR (GROUNDS MAIN'T) LIMITED
1.01181E+15,1180,Sweeping & Cleansing,60154,Horticultural & Sweeping Contract,52685,28/07/2016,"44,322.97",100256,JOHN O'CONNOR (GROUNDS MAIN'T) LIMITED
1.01293E+15,1293,Woodlands Project,60138,Consultancy Fees,133631RHA,28/09/2016,"43,722.74",100852,PETER BRETT ASSOCIATES LLP
1.01293E+15,1293,Woodlands Project,60138,Consultancy Fees,132955RHA,31/08/2016,"36,959.26",100852,PETER BRETT ASSOCIATES LLP
1.01107E+15,1107,Bus Station,60075,Service Charge,0351-131134,03/08/2016,"36,594.60",101454,MONTAGU EVANS LLP
1.01107E+15,1107,Bus Station,60075,Service Charge,0351-132956,07/09/2016,"36,594.60",101454,MONTAGU EVANS LLP
1.01066E+15,1065,Personnel Services,60011,Agency Staff,27596265,30/09/2016,"36,417.44",101657,ADECCO
1.01195E+15,1195,Waterside Theatre,60152,Contract Costs,SIAYL32740,07/07/2016,"33,812.17",100013,AMBASSADOR THEATRE GROUP LTD
1.01195E+15,1195,Waterside Theatre,60152,Contract Costs,SIAYL32758,04/08/2016,"33,812.17",100013,AMBASSADOR THEATRE GROUP LTD
1.01195E+15,1195,Waterside Theatre,60152,Contract Costs,SIAYL32774,09/09/2016,"33,812.17",100013,AMBASSADOR THEATRE GROUP LTD
1.01066E+15,1065,Personnel Services,60011,Agency Staff,27577904,08/09/2016,"31,239.62",101657,ADECCO
1.01144E+15,1144,Mainline Waste Collection,60109,Fuel & Oil,I08612683,30/07/2016,"31,230.35",101452,HALL FUELS
1.01066E+15,1065,Personnel Services,60011,Agency Staff,27565437,25/08/2016,"30,953.60",101657,ADECCO
1.01066E+15,1065,Personnel Services,60011,Agency Staff,27559187,19/08/2016,"30,953.57",101657,ADECCO
1.01066E+15,1065,Personnel Services,60011,Agency Staff,27565437,26/08/2016,"30,950.60",101657,ADECCO
1.01066E+15,1065,Personnel Services,60011,Agency Staff,27584148,15/09/2016,"30,774.63",101657,ADECCO
1.01107E+15,1107,Bus Station,60075,Service Charge,0351-196930,20/09/2016,"30,495.50",101454,MONTAGU EVANS LLP
1.01066E+15,1065,Personnel Services,60011,Agency Staff,27590329,22/09/2016,"30,015.48",101657,ADECCO
1.01154E+15,1154,Legal Services,60011,Agency Staff,702888830,01/07/2016,"29,250.00",100156,HARROW COUNCIL
1.01154E+15,1154,Legal Services,60011,Agency Staff,702931268,08/08/2016,"29,250.00",100156,HARROW COUNCIL
1.01154E+15,1154,Legal Services,60011,Agency Staff,702956063,06/09/2016,"29,250.00",100156,HARROW COUNCIL
1.01114E+15,1113,Gateway,60097,Reactive Property Maintenance,952514,28/07/2016,"28,937.00",100181,INTERSERVE FS UK LTD
1.01114E+15,1113,Gateway,60097,Reactive Property Maintenance,952721,26/08/2016,"28,937.00",100181,INTERSERVE FS UK LTD
1.01066E+15,1065,Personnel Services,60011,Agency Staff,27533399,20/07/2016,"28,630.37",101657,ADECCO
1.01066E+15,1065,Personnel Services,60011,Agency Staff,27552739,12/08/2016,"28,310.32",101657,ADECCO
1.01066E+15,1065,Personnel Services,60011,Agency Staff,27546419,04/08/2016,"27,934.50",101657,ADECCO
1.01066E+15,1065,Personnel Services,60011,Agency Staff,27571533,01/09/2016,"27,570.35",101657,ADECCO
1.01066E+15,1065,Personnel Services,60011,Agency Staff,27539968,29/07/2016,"26,306.07",101657,ADECCO
1.01066E+15,1065,Personnel Services,60011,Agency Staff,27526686,13/07/2016,"25,774.82",101657,ADECCO
1.01049E+15,1049,Aqua Vale SCP,60498,Refunds of Car Park Fees,SLM0005821,09/08/2016,"25,755.00",100133,EVERYONE ACTIVE-CONTRACT
1.01049E+15,1049,Aqua Vale SCP,60498,Refunds of Car Park Fees,SLM0005886,13/09/2016,"25,755.00",100133,EVERYONE ACTIVE-CONTRACT
1.01107E+15,1107,Bus Station,60075,Service Charge,0351-131132,03/08/2016,"25,666.34",101454,MONTAGU EVANS LLP
1.01111E+15,1111,Pembroke Road,60097,Reactive Property Maintenance,838494,11/07/2016,"24,823.00",101763,JANSEN BETONWAREN B V
1.01066E+15,1065,Personnel Services,60011,Agency Staff,27520060,06/07/2016,"23,887.77",101657,ADECCO
1.01101E+15,1101,Closed Circuit TV,60223,CCTV,39803,10/08/2016,"22,026.75",100360,THAMES VALLEY POLICE AUTHORITY
1.01107E+15,1107,Bus Station,60069,Rent,0351-192902,12/07/2016,"21,419.06",101454,MONTAGU EVANS LLP
1.01049E+15,1049,Aqua Vale SCP,60498,Refunds of Car Park Fees,SLM0005734,19/07/2016,"20,933.34",100133,EVERYONE ACTIVE-CONTRACT
1.0117E+15,1170,Electoral Registration,60420,Postage,83831,08/08/2016,"19,695.75",100825,FCS LASERMAIL LTD
1.01107E+15,1107,Bus Station,60069,Rent,0351-132941,07/09/2016,"19,357.00",101454,MONTAGU EVANS LLP
1.01107E+15,1107,Bus Station,60069,Rent,0351-196974,07/09/2016,"19,357.00",101454,MONTAGU EVANS LLP
1.0127E+15,1270,IT (Support),60224,Server Hosting,INV-1974,19/08/2016,"18,309.52",100019,ARCUS GLOBAL LTD
1.01274E+15,1274,Business Assurance,60614,Fees,1354588560,26/07/2016,"17,250.00",100286,PRICEWATERHOUSECOOPERS
1.01293E+15,1293,Woodlands Project,60138,Consultancy Fees,132031 RHA,29/07/2016,"17,100.00",100852,PETER BRETT ASSOCIATES LLP
1.01146E+15,1146,Garden Waste Scheme,60202,Container Purchase,18387,05/08/2016,"16,986.42",101784,MGB PLASTICS
1.01274E+15,1274,Business Assurance,60614,Fees,1354632206,29/09/2016,"16,500.00",100286,PRICEWATERHOUSECOOPERS
1.01316E+15,1316,Commercial AVDC,60138,Consultancy Fees,1624,01/07/2016,"15,776.25",100244,NEPRO LIMITED
1.01221E+15,1221,Paralympic Legacy,60447,Events & Community Participation,2394,12/09/2016,"15,550.00",100150,GREENWICH+DOCKLANDS INTERNATIONAL FESTIV
1.01268E+15,1268,Finance (Governance),60138,Consultancy Fees,1648,04/07/2016,"14,805.00",100244,NEPRO LIMITED
1.01129E+15,1129,Hackney Carriage/Private Hire,60195,Software Purchase,INV-2096,20/09/2016,"14,775.00",100019,ARCUS GLOBAL LTD
1.01202E+15,1202,Prebendal Farm CC,60097,Reactive Property Maintenance,MS/449,21/09/2016,"14,698.25",100870,ASTUTE ENERGY SOLUTIONS LTD (AES)
1.01178E+15,1178,Corporate Management,60132,Audit Fees,GB10100110936,18/08/2016,"14,196.00",100747,ERNST AND YOUNG
1.01316E+15,1316,Commercial AVDC,60138,Consultancy Fees,1778,14/07/2016,"13,015.00",100244,NEPRO LIMITED
1.0129E+15,1290,Forward Plans Reserve,60138,Consultancy Fees,2016/2855,15/09/2016,"12,752.00",101693,JEREMY BENN ASSOCIATES LTD
1.01113E+15,1113,Gateway,60097,Reactive Property Maintenance,2458,06/07/2016,"12,000.00",100390,WELLS & MUNDAY
1.01199E+15,1199,Bedgrove CC,60097,Reactive Property Maintenance,2493,15/09/2016,"11,614.60",100390,WELLS & MUNDAY
1.01114E+15,1113,Gateway,60407,Building Cleaning Contract,1005258,06/09/2016,"11,584.16",101776,KINGDOM NATIONAL SUPPORT CENTRE
1.01114E+15,1113,Gateway,60407,Building Cleaning Contract,1005257,06/09/2016,"11,584.16",101776,KINGDOM NATIONAL SUPPORT CENTRE
1.01114E+15,1113,Gateway,60407,Building Cleaning Contract,1005256,06/09/2016,"11,584.16",101776,KINGDOM NATIONAL SUPPORT CENTRE
1.01162E+15,1162,Democratic Services,60219,Software Maintenance,2016295,01/08/2016,"11,510.00",100953,MODERN.GOV MODERN MINDSET
1.01316E+15,1316,Commercial AVDC,60138,Consultancy Fees,1673,05/07/2016,"11,302.50",100244,NEPRO LIMITED
1.01114E+15,1113,Gateway,60097,Reactive Property Maintenance,952572,26/07/2016,"11,016.50",100181,INTERSERVE FS UK LTD
1.01114E+15,1113,Gateway,60407,Building Cleaning Contract,1005448,06/09/2016,"10,989.53",101776,KINGDOM NATIONAL SUPPORT CENTRE
1.01144E+15,1144,Mainline Waste Collection,60202,Container Purchase,26669,29/07/2016,"10,956.40",100345,STRAIGHT PLC
1.01069E+15,1069,Payroll,60222,Rental Delphi Freedom,SIN013445,25/08/2016,"10,936.71",100224,MHR
1.01114E+15,1113,Gateway,60407,Building Cleaning Contract,1005495,22/09/2016,"10,811.14",101776,KINGDOM NATIONAL SUPPORT CENTRE
1.01288E+15,1288,Childrens' Issues,60441,Countywide Activities,2204027295,09/08/2016,"10,633.00",100058,BUCKS COUNTY COUNCIL GENERAL ACCOUNT
1.0127E+15,1270,IT (Support),60224,Server Hosting,INV-2080,13/09/2016,"9,974.15",100019,ARCUS GLOBAL LTD
1.01169E+15,1169,Local Land Charges,60369,Bucks County Council Charges,2209006854,09/08/2016,"9,811.20",100058,BUCKS COUNTY COUNCIL GENERAL ACCOUNT
1.01181E+15,1180,Sweeping & Cleansing,60154,Horticultural & Sweeping Contract,52685,28/07/2016,"9,611.77",100256,JOHN O'CONNOR (GROUNDS MAIN'T) LIMITED
1.01274E+15,1274,Business Assurance,60219,Software Maintenance,1607002,01/07/2016,"9,600.00",100758,HITEC LABORATORIES LTD
1.0127E+15,1270,IT (Support),60224,Server Hosting,INV-1958,11/08/2016,"9,586.51",100019,ARCUS GLOBAL LTD
1.01169E+15,1169,Local Land Charges,60369,Bucks County Council Charges,2209006691,06/07/2016,"9,516.00",100058,BUCKS COUNTY COUNCIL GENERAL ACCOUNT
1.0127E+15,1270,IT (Support),60198,Disaster Recovery,4/I409237,29/09/2016,"9,318.36",100686,DAISY GROUP LIMITED
1.01257E+15,1257,Development Management Reserve,60138,Consultancy Fees,550,20/07/2016,"9,099.20",100185,PHILIPPA JARVIS
1.01048E+15,1048,Waitrose MSCP,60498,Refunds of Car Park Fees,7011015199,22/09/2016,"9,053.61",100387,WAITROSE
1.01316E+15,1316,Commercial AVDC,60040,Training-Short Courses,204,31/08/2016,"9,000.00",101748,IOLITE CONSULTANTS LTD
1.01292E+15,1292,AVA Business Account,60002,Overtime,2207029281,29/09/2016,"8,632.80",100058,BUCKS COUNTY COUNCIL GENERAL ACCOUNT
1.01292E+15,1292,AVA Business Account,60002,Overtime,2207028953,08/08/2016,"8,546.40",100058,BUCKS COUNTY COUNCIL GENERAL ACCOUNT
1.011E+15,1100,Community Safety,60178,Thames Valley Police,40210,21/09/2016,"8,516.25",100360,THAMES VALLEY POLICE AUTHORITY
1.011E+15,1100,Community Safety,60178,Thames Valley Police,39443,01/07/2016,"8,516.25",100360,THAMES VALLEY POLICE AUTHORITY
1.01235E+15,1235,LEAP-Physical Activity,60011,Agency Staff,3881,07/09/2016,"8,325.00",100007,ADVENTURE LEARNING FOUNDATION
1.01159E+15,1159,Cost of Photocopying,60400,Photocopier Rental,PP7MD0275924,03/08/2016,"8,322.90",100550,KENT COUNTY COUNCIL
1.0117E+15,1170,Electoral Registration,60420,Postage,84109,08/09/2016,"8,253.60",100825,FCS LASERMAIL LTD
1.0117E+15,1170,Electoral Registration,60420,Postage,84232,08/09/2016,"8,252.64",100825,FCS LASERMAIL LTD
1.01317E+15,1317,EU Referendum,60014,Election Staffing Costs,400729,19/07/2016,"8,235.00",100518,V ROBINSON & SON LIMITED
1.01316E+15,1316,Commercial AVDC,60138,Consultancy Fees,2340,08/09/2016,"8,220.00",100244,NEPRO LIMITED
1.0129E+15,1290,Forward Plans Reserve,60138,Consultancy Fees,2218/721,06/07/2016,"8,131.50",101777,THE RETAIL GROUP
1.0129E+15,1290,Forward Plans Reserve,60138,Consultancy Fees,2222/721,29/07/2016,"8,131.50",101777,THE RETAIL GROUP
1.01105E+15,1105,Concessionary Travel,60290,Travel Tokens,403517,06/07/2016,"8,100.00",100814,STAGECOACH SERVICES LIMITED
1.01221E+15,1221,Paralympic Legacy,60447,Events & Community Participation,NES-SEPT-16-09,05/09/2016,"8,098.00",101834,NEWMAN EVENTS SERVICES LTD
1.01169E+15,1169,Local Land Charges,60369,Bucks County Council Charges,2209006956,06/09/2016,"7,920.00",100058,BUCKS COUNTY COUNCIL GENERAL ACCOUNT
1.0127E+15,1270,IT (Support),60224,Server Hosting,INV-1927,03/08/2016,"7,885.53",100019,ARCUS GLOBAL LTD
1.01316E+15,1316,Commercial AVDC,60138,Consultancy Fees,438,15/08/2016,"7,875.00",100171,IESE LIMITED
1.01235E+15,1235,LEAP-Physical Activity,60395,Services,3879,07/09/2016,"7,805.00",100007,ADVENTURE LEARNING FOUNDATION
1.01196E+15,1196,Play Services,60001,Basic Salary,11856,19/09/2016,"7,759.50",100545,AYLESBURY TOWN COUNCIL AYLESBURY TOWN COUNCIL
1.0127E+15,1270,IT (Support),60622,Communication Lines,6092005408,24/08/2016,"7,365.90",100375,UPDATA INFRASTRUCTURE UK LTD
1.01272E+15,1272,Phone System,60408,Telephones,102157,01/07/2016,"7,341.69",100591,VOICENET SOLUTIONS LTD
1.01268E+15,1268,Finance (Governance),60138,Consultancy Fees,2001,04/08/2016,"7,315.00",100244,NEPRO LIMITED
1.01272E+15,1272,Phone System,60408,Telephones,102982,01/08/2016,"7,261.79",100591,VOICENET SOLUTIONS LTD
1.0127E+15,1270,IT (Support),60083,Security,935523028,04/08/2016,"7,200.00",101758,INTEL CORPORATION UK LTD
1.01073E+15,1073,Corporate Internal Courses,60039,Learning Pool,INV-011564,11/07/2016,"7,000.00",100486,LEARNING POOL
1.01256E+15,1256,Development Management,60011,Agency Staff,AVDC1,15/07/2016,"6,960.00",101796,REGENCY PLANNING LTD
1.01272E+15,1272,Phone System,60408,Telephones,103809,01/09/2016,"6,933.23",100591,VOICENET SOLUTIONS LTD
1.01145E+15,1145,Commercial Waste Services,60202,Container Purchase,13865,12/08/2016,"6,879.00",101793,SPIDER UK LTD
1.01145E+15,1145,Commercial Waste Services,60202,Container Purchase,13865,12/08/2016,"6,789.00",101793,SPIDER UK LTD
1.01268E+15,1268,Finance (Governance),60138,Consultancy Fees,1674,05/07/2016,"6,650.00",100244,NEPRO LIMITED
1.0114E+15,1140,Disabled Facility Grants,60358,Disabled Facilities Grant,S085047362,29/09/2016,"6,519.00",100342,STANNAH LIFT SERVICES LIMITED
1.01316E+15,1316,Commercial AVDC,60138,Consultancy Fees,2282,06/09/2016,"6,507.50",100244,NEPRO LIMITED
1.01144E+15,1144,Mainline Waste Collection,60202,Container Purchase,6780559,28/07/2016,"6,494.40",100865,ESE World Ltd
1.0127E+15,1270,IT (Support),60219,Software Maintenance,59212,09/08/2016,"6,397.40",100257,ONI PLC
1.01144E+15,1144,Mainline Waste Collection,60202,Container Purchase,6416,19/08/2016,"6,320.00",101802,Abfallbehaelter & Container Weber GmbH & Co. KG
1.01269E+15,1269,Debt Management,60537,Credit Cards,J2820089,01/07/2016,"6,131.03",100397,WORLDPAY LTD
1.01269E+15,1269,Debt Management,60537,Credit Cards,J3665805,01/09/2016,"6,074.87",100397,WORLDPAY LTD
1.01214E+15,1214,Leisure Tourism,60437,Partnerships,1454,07/07/2016,"6,000.00",100658,BUCKINGHAMSHIRE BUSINESS FIRST
1.01114E+15,1113,Gateway,60097,Reactive Property Maintenance,953068,26/08/2016,"5,992.65",100181,INTERSERVE FS UK LTD
1.01316E+15,1316,Commercial AVDC,60138,Consultancy Fees,1787,15/07/2016,"5,985.00",100244,NEPRO LIMITED
1.01269E+15,1269,Debt Management,60537,Credit Cards,J3243487,01/08/2016,"5,968.23",100397,WORLDPAY LTD
1.0127E+15,1270,IT (Support),60194,Hardware Purchase,58923,06/07/2016,"5,920.08",100257,ONI PLC
1.0114E+15,1140,Disabled Facility Grants,60358,Disabled Facilities Grant,S085047688,29/09/2016,"5,907.00",100342,STANNAH LIFT SERVICES LIMITED
1.01111E+15,1111,Pembroke Road,60223,CCTV,SIN081386,25/08/2016,"5,851.00",100292,QUADRANT SECURITY GROUP LTD
1.0113E+15,1129,Hackney Carriage/Private Hire,60145,Criminal Records Bureau,R0035655,26/08/2016,"5,764.00",100687,CAPITA RESOURCING LIMITED
1.0127E+15,1270,IT (Support),60083,Security,935526969,16/09/2016,"5,760.00",101758,INTEL CORPORATION UK LTD
1.01069E+15,1069,Payroll,60433,Other Costs,C-00023405,12/07/2016,"5,682.82",100646,COMPUTERSHARE VOUCHER SERVICES
1.0117E+15,1170,Electoral Registration,60063,Canvas Expenses,83872,08/08/2016,"5,661.40",100825,FCS LASERMAIL LTD
1.0114E+15,1140,Disabled Facility Grants,60358,Disabled Facilities Grant,S085046333,29/09/2016,"5,655.00",100342,STANNAH LIFT SERVICES LIMITED
1.01069E+15,1069,Payroll,60433,Other Costs,C-00023589,12/08/2016,"5,630.70",100646,COMPUTERSHARE VOUCHER SERVICES
1.0114E+15,1140,Disabled Facility Grants,60358,Disabled Facilities Grant,14-15-3123,08/08/2016,"5,616.78",100183,IVINGHOE BUILDING SERVICES
1.0114E+15,1140,Disabled Facility Grants,60358,Disabled Facilities Grant,14-15-3123,07/09/2016,"5,616.78",100183,IVINGHOE BUILDING SERVICES
1.01069E+15,1069,Payroll,60433,Other Costs,C-00023744,12/09/2016,"5,580.70",100646,COMPUTERSHARE VOUCHER SERVICES
1.01144E+15,1144,Mainline Waste Collection,60090,Replace Bins,12394,05/09/2016,"5,500.00",101842,FEEDBACK ATENCY
1.01178E+15,1178,Corporate Management,60137,Finance Fees,6265516,28/07/2016,"5,500.00",101803,PINSENT MASONS LLP
1.0129E+15,1290,Forward Plans Reserve,60138,Consultancy Fees,2231/721,22/09/2016,"5,421.00",101777,THE RETAIL GROUP
1.01151E+15,1151,Chief Executive,60138,Consultancy Fees,MFG/1334,17/07/2016,"5,420.00",101697,BEERMAT EVENTS
1.01318E+15,1318,IT (Governance),60138,Consultancy Fees,2436,20/09/2016,"5,320.00",100244,NEPRO LIMITED
1.01269E+15,1269,Debt Management,60537,Credit Cards,J2820078,01/07/2016,"5,276.01",100397,WORLDPAY LTD
1.01181E+15,1180,Sweeping & Cleansing,60154,Horticultural & Sweeping Contract,53098,31/08/2016,"5,245.08",100256,JOHN O'CONNOR (GROUNDS MAIN'T) LIMITED
1.01268E+15,1268,Finance (Governance),60138,Consultancy Fees,2181,22/08/2016,"5,236.88",100244,NEPRO LIMITED
1.0113E+15,1129,Hackney Carriage/Private Hire,60145,Criminal Records Bureau,R0034724,26/07/2016,"5,236.00",100687,CAPITA RESOURCING LIMITED
1.01144E+15,1144,Mainline Waste Collection,60202,Container Purchase,18949,28/07/2016,"5,180.00",101784,MGB PLASTICS
1.0114E+15,1140,Disabled Facility Grants,60358,Disabled Facilities Grant,1656,07/09/2016,"5,120.00",101451,EVOLUTION DESIGN AND BUILD
1.01151E+15,1151,Chief Executive,60138,Consultancy Fees,434,29/07/2016,"5,069.59",100171,IESE LIMITED
1.01113E+15,1113,Gateway,60405,Catering,13948,29/07/2016,"5,060.20",100609,ACCENT CATERING SERVICES LTD
1.01269E+15,1269,Debt Management,60537,Credit Cards,J3665795,01/09/2016,"5,057.39",100397,WORLDPAY LTD
1.01144E+15,1144,Mainline Waste Collection,60202,Container Purchase,6416,19/08/2016,"4,963.50",101802,Abfallbehaelter & Container Weber GmbH & Co. KG
1.01293E+15,1293,Woodlands Project,60138,Consultancy Fees,3307/16,26/07/2016,"4,933.75",101607,UNSWORTH PLANNING
1.0114E+15,1140,Disabled Facility Grants,60358,Disabled Facilities Grant,15-16-3136,06/07/2016,"4,898.80",100183,IVINGHOE BUILDING SERVICES
1.01056E+15,1056,Swan Pool SCP,60498,Refunds of Car Park Fees,SLM0005734,19/07/2016,"4,774.16",100133,EVERYONE ACTIVE-CONTRACT
1.01269E+15,1269,Debt Management,60537,Credit Cards,J3243477,01/08/2016,"4,770.37",100397,WORLDPAY LTD
1.01311E+15,1311,Right Here Right Now,60673,Platform Contract,INV-1801,07/07/2016,"4,770.00",100019,ARCUS GLOBAL LTD
1.0113E+15,1129,Hackney Carriage/Private Hire,60145,Criminal Records Bureau,R0036357,26/09/2016,"4,760.00",100687,CAPITA RESOURCING LIMITED
1.0129E+15,1290,Forward Plans Reserve,60138,Consultancy Fees,Y10002176,31/08/2016,"4,700.00",100161,GL HEARN
1.01257E+15,1257,Development Management Reserve,60138,Consultancy Fees,AVDC2,30/08/2016,"4,650.00",101796,REGENCY PLANNING LTD
1.01027E+15,1027,Public Conveniences Administration,60407,Building Cleaning Contract,33501,01/08/2016,"4,596.47",100337,SPECIALIST HYGIENE SERVICES LTD
1.01267E+15,1267,NNDR,60219,Software Maintenance,1347,30/08/2016,"4,554.00",100022,ASH INFORMATION SYSTEMS LTD
1.01237E+15,1237,LEAP - Squash & Racquetball,60395,Services,55,05/08/2016,"4,500.00",100258,ONNIEBUCKET LTD
1.01199E+15,1199,Bedgrove CC,60097,Reactive Property Maintenance,2484,08/09/2016,"4,490.00",100390,WELLS & MUNDAY
1.01154E+15,1154,Legal Services,60011,Agency Staff,702972727,14/09/2016,"4,482.40",100156,HARROW COUNCIL
1.01036E+15,1036,Parking Services Administration,60187,Equipment Repairs,UK90418,01/09/2016,"4,453.41",100266,PARKEON LTD
1.0114E+15,1140,Disabled Facility Grants,60358,Disabled Facilities Grant,15-16-3154,28/09/2016,"4,444.00",100183,IVINGHOE BUILDING SERVICES
1.01151E+15,1151,Chief Executive,60138,Consultancy Fees,MFG/1335,22/08/2016,"4,310.00",101697,BEERMAT EVENTS
1.0129E+15,1290,Forward Plans Reserve,60138,Consultancy Fees,14093,24/08/2016,"4,270.50",101733,VIVID RESOURCING LTD
1.01181E+15,1181,Parks Administration,60160,Horticultural Contract-Variation Orders,4734,20/07/2016,"4,257.50",100396,WINDOWFLOWERS LTD
1.01056E+15,1056,Swan Pool SCP,60498,Refunds of Car Park Fees,SLM0005821,09/08/2016,"4,220.83",100133,EVERYONE ACTIVE-CONTRACT
1.01257E+15,1257,Development Management Reserve,60138,Consultancy Fees,JPA/JULY 2016,08/08/2016,"4,094.00",100667,JEREMY PETER ASSOCIATES
1.01133E+15,1133,Dog Warden Scheme,60155,SDK Contract,39546,31/08/2016,"4,025.72",100313,SDK ENVIRONMENTAL LTD
1.01133E+15,1133,Dog Warden Scheme,60155,SDK Contract,39392,31/07/2016,"4,025.72",100313,SDK ENVIRONMENTAL LTD
1.01144E+15,1144,Mainline Waste Collection,60112,Vehicle Hire,IV187470,31/08/2016,"4,025.00",101586,Riverside Truck Rental Ltd
1.01144E+15,1144,Mainline Waste Collection,60112,Vehicle Hire,IV187471,31/08/2016,"4,025.00",101586,Riverside Truck Rental Ltd
1.01056E+15,1056,Swan Pool SCP,60498,Refunds of Car Park Fees,SLM0005886,13/09/2016,"4,024.17",100133,EVERYONE ACTIVE-CONTRACT
1.0114E+15,1140,Disabled Facility Grants,60358,Disabled Facilities Grant,48812,06/07/2016,"4,014.37",100095,R AND D CONTRACTORS
1.0128E+15,1280,Motor Insurance,60020,Public Liability Insurance Excess,MV00329/15-16,30/09/2016,"3,996.00",100671,TRAVELERS INSURANCE COMPANY LTD
1.0117E+15,1170,Electoral Registration,60063,Canvas Expenses,83689,28/07/2016,"3,976.25",100825,FCS LASERMAIL LTD
1.01257E+15,1257,Development Management Reserve,60138,Consultancy Fees,JPA/AUGUST 2016,02/09/2016,"3,910.00",100667,JEREMY PETER ASSOCIATES
1.01107E+15,1107,Bus Station,60069,Rent,0351-132941,07/09/2016,"3,871.40",101454,MONTAGU EVANS LLP
1.01113E+15,1113,Gateway,60407,Building Cleaning Contract,25172,09/08/2016,"3,861.73",100760,LOUGHTON CONTRACTS PLC
1.01159E+15,1159,Cost of Photocopying,60398,Photocopying,PP7MD0273169,13/07/2016,"3,858.26",100550,KENT COUNTY COUNCIL
1.01144E+15,1144,Mainline Waste Collection,60112,Vehicle Hire,S020805,12/09/2016,"3,795.00",101757,COLLETT TRANSPORT SERVICES
1.0129E+15,1290,Forward Plans Reserve,60138,Consultancy Fees,1014,16/08/2016,"3,795.00",101830,TORKILDSEN BARCLAY
1.01257E+15,1257,Development Management Reserve,60378,Legal Fees,68458,28/09/2016,"3,750.00",100274,MR HEREWARD PHILLPOT
1.01299E+15,1299,Car Pooling Scheme,60112,Vehicle Hire,AVDC005,31/07/2016,"3,740.00",100127,ENTERPRISE RENT A CAR
1.0128E+15,1280,Motor Insurance,60020,Public Liability Insurance Excess,0002/16-17,04/07/2016,"3,736.63",100671,TRAVELERS INSURANCE COMPANY LTD
1.01257E+15,1257,Development Management Reserve,60138,Consultancy Fees,JPA/JUNE 2016,04/07/2016,"3,634.00",100667,JEREMY PETER ASSOCIATES
1.01036E+15,1036,Parking Services Administration,60542,CSS Costs,23266,01/08/2016,"3,632.00",101464,BDI Securities
1.01144E+15,1144,Mainline Waste Collection,60112,Vehicle Hire,S020992,30/09/2016,"3,630.00",101757,COLLETT TRANSPORT SERVICES
1.0114E+15,1140,Disabled Facility Grants,60358,Disabled Facilities Grant,1642,21/07/2016,"3,620.00",101451,EVOLUTION DESIGN AND BUILD
1.01146E+15,1146,Garden Waste Scheme,60209,Waste Disposal,20412,30/09/2016,"3,609.24",101821,MATERIAL CHANGE
1.0114E+15,1140,Disabled Facility Grants,60358,Disabled Facilities Grant,1643,20/07/2016,"3,550.00",101451,EVOLUTION DESIGN AND BUILD
1.01107E+15,1107,Bus Station,60102,Electricity,0351-129978,13/07/2016,"3,535.20",101454,MONTAGU EVANS LLP
1.01235E+15,1235,LEAP-Physical Activity,60395,Services,3880,07/09/2016,"3,500.00",100007,ADVENTURE LEARNING FOUNDATION
1.01075E+15,1075,Other Training,60380,Licences,70409,06/07/2016,"3,500.00",101772,ABINTEGRO LTD
1.01179E+15,1179,Highway and Amenity Areas,60092,Grounds Repairs & Maintenance,1620013064,29/07/2016,"3,500.00",101710,RAMBOLL
1.01042E+15,1042,Walton Street MSCP,60098,Planned Property Maintenance,113097507,05/08/2016,"3,498.00",100752,KONE PLC
1.01267E+15,1267,NNDR,60142,Tracing Agent,10038,23/08/2016,"3,485.00",100085,COMMERCIAL INVESTIGATION NETWORK LTD
1.01036E+15,1036,Parking Services Administration,60542,CSS Costs,23329,01/09/2016,"3,477.30",101464,BDI Securities
1.0117E+15,1170,Electoral Registration,60420,Postage,9052838599,29/08/2016,"3,474.88",100307,ROYAL MAIL
1.01144E+15,1144,Mainline Waste Collection,60112,Vehicle Hire,S020549,19/08/2016,"3,465.00",101757,COLLETT TRANSPORT SERVICES
1.01221E+15,1221,Paralympic Legacy,60447,Events & Community Participation,971,19/09/2016,"3,450.75",100421,AD HEALTH AND SAFETY
1.01257E+15,1257,Development Management Reserve,60138,Consultancy Fees,SEBC-04,01/09/2016,"3,441.00",101751,STONE TOWN PLANNING LIMITED
1.0117E+15,1170,Electoral Registration,60420,Postage,9052773687,22/08/2016,"3,434.52",100307,ROYAL MAIL
1.01111E+15,1111,Pembroke Road,60097,Reactive Property Maintenance,838568,25/07/2016,"3,429.05",101763,JANSEN BETONWAREN B V
1.01041E+15,1041,Friarscroft MSCP,60098,Planned Property Maintenance,1227828,01/07/2016,"3,364.30",100261,OTIS LIMITED
1.01267E+15,1267,NNDR,60517,Insolvency,DIS 12,14/07/2016,"3,345.00",100701,PARROTT & COALES LLP SOLICITORS
1.01292E+15,1292,AVA Business Account,60138,Consultancy Fees,16003,04/07/2016,"3,343.02",100651,ANTHEA E THOMAS
1.01036E+15,1036,Parking Services Administration,60087,Signing & Improvements,F118246,28/09/2016,"3,333.20",101448,F1 LINING LTD
1.01036E+15,1036,Parking Services Administration,60542,CSS Costs,23197,01/07/2016,"3,322.60",101464,BDI Securities
1.01057E+15,1057,Communications & Marketing,60125,Community Initiatives,594530,06/09/2016,"3,267.38",100100,THE COPYRIGHT LICENSING AGENCY LTD
1.01101E+15,1101,Closed Circuit TV,60086,Client Repair,SIN081238,03/08/2016,"3,239.50",100292,QUADRANT SECURITY GROUP LTD
1.01257E+15,1257,Development Management Reserve,60138,Consultancy Fees,SEBC-02,01/07/2016,"3,235.00",101751,STONE TOWN PLANNING LIMITED
1.0114E+15,1140,Disabled Facility Grants,60358,Disabled Facilities Grant,48807,19/07/2016,"3,213.60",100095,R AND D CONTRACTORS
1.01287E+15,1287,Commercial Solutions,60047,IIP Review Process,MFG/1343,22/09/2016,"3,200.00",101697,BEERMAT EVENTS
1.01038E+15,1038,Exchange Street SCP,60498,Refunds of Car Park Fees,SI-020400,08/08/2016,"3,197.50",100655,ODEON CINEMAS
1.01038E+15,1038,Exchange Street SCP,60498,Refunds of Car Park Fees,SI-020487,01/08/2016,"3,163.75",100655,ODEON CINEMAS
1.01292E+15,1292,AVA Business Account,60132,Audit Fees,48500,29/07/2016,"3,120.00",101071,RICHARDSONS
1.01178E+15,1178,Corporate Management,60132,Audit Fees,GB10100110936,18/08/2016,"3,113.00",100747,ERNST AND YOUNG
1.01197E+15,1197,District Play Services,60614,Fees,11857,19/09/2016,"3,099.00",100545,AYLESBURY TOWN COUNCIL AYLESBURY TOWN COUNCIL
1.01178E+15,1178,Corporate Management,60137,Finance Fees,0108/AGR,09/09/2016,"3,075.00",100308,ALAN G RUSSELL
1.01271E+15,1271,IS/IT,60219,Software Maintenance,UK-SIN002597,25/08/2016,"3,073.50",100131,ESRI (UK) LTD
1.01256E+15,1256,Development Management,60011,Agency Staff,1001798,20/07/2016,"3,071.13",101587,OYSTER PARTNERSHIP LTD
1.01289E+15,1289,Forward Planning,60011,Agency Staff,13276,20/07/2016,"3,032.25",101733,VIVID RESOURCING LTD
1.01114E+15,1113,Gateway,60097,Reactive Property Maintenance,952406,08/07/2016,"2,983.90",100181,INTERSERVE FS UK LTD
1.01256E+15,1256,Development Management,60011,Agency Staff,1001114,06/07/2016,"2,954.00",101587,OYSTER PARTNERSHIP LTD
1.01107E+15,1107,Bus Station,60102,Electricity,0351-193420,21/07/2016,"2,946.00",101454,MONTAGU EVANS LLP
1.01038E+15,1038,Exchange Street SCP,60498,Refunds of Car Park Fees,SI-020523,28/09/2016,"2,933.33",100655,ODEON CINEMAS
1.01269E+15,1269,Debt Management,60540,Cash Handling Costs,0000439684 AVCT,29/07/2016,"2,840.00",101658,ALLPAY
1.01292E+15,1292,AVA Business Account,60138,Consultancy Fees,16004,29/07/2016,"2,831.94",100651,ANTHEA E THOMAS
1.01292E+15,1292,AVA Business Account,60138,Consultancy Fees,16005,02/09/2016,"2,829.14",100651,ANTHEA E THOMAS
1.0114E+15,1140,Disabled Facility Grants,60358,Disabled Facilities Grant,S085041023,06/07/2016,"2,797.00",100342,STANNAH LIFT SERVICES LIMITED
1.01144E+15,1144,Mainline Waste Collection,60090,Replace Bins,6780941,03/08/2016,"2,778.40",100865,ESE World Ltd
1.0129E+15,1290,Forward Plans Reserve,60138,Consultancy Fees,2220/721,20/07/2016,"2,700.00",101777,THE RETAIL GROUP
1.0129E+15,1290,Forward Plans Reserve,60138,Consultancy Fees,2227/721,26/08/2016,"2,700.00",101777,THE RETAIL GROUP
1.01139E+15,1139,Nuisance Control,60172,Clearance Costs,23497,26/07/2016,"2,700.00",101801,PPM
1.01268E+15,1268,Finance (Governance),60134,VAT Advice,POLICY COS,20/09/2016,"2,667.31",100696,FASTER PAYMENTS
1.0129E+15,1290,Forward Plans Reserve,60138,Consultancy Fees,100316,06/07/2016,"2,625.00",101788,FIELDWORK ASSISTANCE
1.0129E+15,1290,Forward Plans Reserve,60138,Consultancy Fees,100323,11/08/2016,"2,625.00",101788,FIELDWORK ASSISTANCE
1.01151E+15,1151,Chief Executive,60138,Consultancy Fees,MFG/1333,10/07/2016,"2,600.00",101697,BEERMAT EVENTS
1.01114E+15,1113,Gateway,60073,Cleaning Materials,64136256,27/08/2016,"2,591.98",100269,PERSONNEL HYGIENE SERVICES GROUP  LTD
1.01181E+15,1180,Sweeping & Cleansing,60154,Horticultural & Sweeping Contract,OP/I053496,27/07/2016,"2,572.49",100328,SUEZ
1.01289E+15,1289,Forward Planning,60138,Consultancy Fees,2181,22/08/2016,"2,493.75",100244,NEPRO LIMITED
1.01289E+15,1289,Forward Planning,60419,Printing,52131,11/07/2016,"2,476.00",100268,PELICAN PRINT & DESIGN LTD
1.01267E+15,1267,NNDR,60141,Bailiffs Commission,28964,01/09/2016,"2,471.57",100001,ACE SELF-STORAGE
1.0127E+15,1270,IT (Support),60622,Communication Lines,59629,30/09/2016,"2,463.18",100257,ONI PLC
1.0117E+15,1170,Electoral Registration,60063,Canvas Expenses,84109,08/09/2016,"2,444.87",100825,FCS LASERMAIL LTD
1.01036E+15,1036,Parking Services Administration,60201,Equipment,115939,08/08/2016,"2,428.80",100068,CALE BRIPARC LTD
1.01316E+15,1316,Commercial AVDC,60040,Training-Short Courses,205,11/09/2016,"2,400.00",101748,IOLITE CONSULTANTS LTD
1.01238E+15,1238,LEAP-Sportivate,60395,Services,2016/CS/004,27/09/2016,"2,400.00",101759,BUCKS CRICKET BOARD LTD
1.01151E+15,1151,Chief Executive,60138,Consultancy Fees,MFG/1341,15/09/2016,"2,400.00",101697,BEERMAT EVENTS
1.01131E+15,1131,Waste Strategy & Development,60163,Service Development,374,08/08/2016,"2,379.69",101541,FRITH RESOURCE  MANAGEMENT LTD
1.01272E+15,1272,Phone System,60219,Software Maintenance,OP/I107237,10/08/2016,"2,355.00",100371,ULTIMA BUSINESS SOLUTIONS LTD
1.0117E+15,1170,Electoral Registration,60420,Postage,9053004498,26/09/2016,"2,340.40",100307,ROYAL MAIL
1.01293E+15,1293,Woodlands Project,60138,Consultancy Fees,2845,01/07/2016,"2,340.00",100652,SWIFT ECOLOGY
1.01154E+15,1154,Legal Services,60011,Agency Staff,INV168477,19/09/2016,"2,312.50",100318,SELLICK PARTNERSHIP
1.01131E+15,1131,Waste Strategy & Development,60163,Service Development,382,07/09/2016,"2,304.69",101541,FRITH RESOURCE  MANAGEMENT LTD
1.01195E+15,1195,Waterside Theatre,60326,Community Leisure,SIAYL32743,20/07/2016,"2,300.00",100013,AMBASSADOR THEATRE GROUP LTD
1.01195E+15,1195,Waterside Theatre,60326,Community Leisure,SL33104,20/08/2016,"2,300.00",100013,AMBASSADOR THEATRE GROUP LTD
1.01119E+15,1119,Town Centre Properties,60223,CCTV,SIN081057,20/07/2016,"2,268.00",100292,QUADRANT SECURITY GROUP LTD
1.01073E+15,1073,Corporate Internal Courses,60012,Tutor Fees,6426,26/07/2016,"2,250.00",100273,PHASE 3 CONSULTING
1.01316E+15,1316,Commercial AVDC,60138,Consultancy Fees,2181,22/08/2016,"2,244.37",100244,NEPRO LIMITED
1.01251E+15,1251,LEAP-Primary Pupil Premium,60069,Rent,161836/10904,26/07/2016,"2,218.21",100344,STOKE MANDEVILLE STADIUM
1.01181E+15,1180,Sweeping & Cleansing,60154,Horticultural & Sweeping Contract,53195,22/09/2016,"2,210.60",100256,JOHN O'CONNOR (GROUNDS MAIN'T) LIMITED
1.0127E+15,1270,IT (Support),60219,Software Maintenance,HSMLI1600063,22/09/2016,"2,210.25",100476,HORNBILL SYSTEMS LTD
1.01271E+15,1271,IS/IT,60219,Software Maintenance,UK-PIN000760,31/08/2016,"2,190.00",100131,ESRI (UK) LTD
1.01154E+15,1154,Legal Services,60011,Agency Staff,INV162190,11/07/2016,"2,187.50",100318,SELLICK PARTNERSHIP
1.01238E+15,1238,LEAP-Sportivate,60395,Services,YEAR 5 DELIVERY OF TENNIS,15/08/2016,"2,176.00",100808,ITC LTD
1.01199E+15,1199,Bedgrove CC,60097,Reactive Property Maintenance,991,18/08/2016,"2,147.00",101674,Litchfield Floor Renovations
1.01154E+15,1154,Legal Services,60011,Agency Staff,INV167810,12/09/2016,"2,137.50",100318,SELLICK PARTNERSHIP
1.01257E+15,1257,Development Management Reserve,60138,Consultancy Fees,SEBC-03,01/08/2016,"2,118.00",101751,STONE TOWN PLANNING LIMITED
1.01144E+15,1144,Mainline Waste Collection,60112,Vehicle Hire,IV193409,31/08/2016,"2,100.00",101586,Riverside Truck Rental Ltd
1.01154E+15,1154,Legal Services,60011,Agency Staff,INV167808,12/09/2016,"2,087.50",100318,SELLICK PARTNERSHIP
1.01256E+15,1256,Development Management,60011,Agency Staff,1002132,27/07/2016,"2,083.13",101587,OYSTER PARTNERSHIP LTD
1.01269E+15,1269,Debt Management,60537,Credit Cards,J3730335,01/09/2016,"2,079.78",100397,WORLDPAY LTD
1.01154E+15,1154,Legal Services,60011,Agency Staff,INV164696,07/08/2016,"2,075.00",100318,SELLICK PARTNERSHIP
1.01154E+15,1154,Legal Services,60011,Agency Staff,INV162809,18/07/2016,"2,062.50",100318,SELLICK PARTNERSHIP
1.01199E+15,1199,Bedgrove CC,60097,Reactive Property Maintenance,800,13/07/2016,"2,050.00",101760,QUAINTON CARPETS
1.01154E+15,1154,Legal Services,60011,Agency Staff,INV164021,01/08/2016,"2,037.50",100318,SELLICK PARTNERSHIP
1.01271E+15,1271,IS/IT,60546,Contribution to IT Reserve-Finance,U001145,30/09/2016,"2,011.55",100356,TECHNOLOGY ONE UK LTD
1.0123E+15,1230,LEAP - Coordination,60395,Services,1095,26/09/2016,"2,000.00",101102,COUNTY SPORTS PARTNERSHIP NETWORK
1.01238E+15,1238,LEAP-Sportivate,60395,Services,TOUCH RUGBY,26/07/2016,"2,000.00",100803,HIGH WYCOMBE RUGBY CLUB
1.01268E+15,1268,Finance (Governance),60040,Training-Short Courses,SIN/00007478,07/09/2016,"1,995.00",100032,AYLESBURY COLLEGE
1.01256E+15,1256,Development Management,60011,Agency Staff,1002795,10/08/2016,"1,993.55",101587,OYSTER PARTNERSHIP LTD
1.0127E+15,1270,IT (Support),60201,Equipment,214327,23/09/2016,"1,990.00",100354,3C TECHNOLOGY LTD
1.01129E+15,1129,Hackney Carriage/Private Hire,60394,Supplies,T26375,05/08/2016,"1,980.00",100245,NEWAUTO LIMITED
1.0127E+15,1270,IT (Support),60221,Hardware Maintenance,2872,01/07/2016,"1,979.20",100391,WELLDATA LTD
1.01269E+15,1269,Debt Management,60537,Credit Cards,J3308928,01/08/2016,"1,976.78",100397,WORLDPAY LTD
1.01114E+15,1113,Gateway,60103,Gas,G4610052,19/09/2016,"1,965.78",101169,LASER- KENT COUNTY COUNCIL
1.01269E+15,1269,Debt Management,60537,Credit Cards,J2886274,01/07/2016,"1,948.65",100397,WORLDPAY LTD
1.01098E+15,1098,Community Engagement,60395,Services,P120678,02/08/2016,"1,925.00",101815,CHILTON HOME FARMS LTD
1.01219E+15,1218,Arts Activities,60395,Services,116,05/07/2016,"1,910.36",101702,PETER BIRD
1.01219E+15,1218,Arts Activities,60395,Services,52,11/07/2016,"1,905.00",101765,UNUSUAL MEDIA LTD
1.01144E+15,1144,Mainline Waste Collection,60090,Replace Bins,6780941,03/08/2016,"1,896.60",100865,ESE World Ltd
1.01256E+15,1256,Development Management,60011,Agency Staff,1003460,24/08/2016,"1,891.50",101587,OYSTER PARTNERSHIP LTD
1.01267E+15,1267,NNDR,60517,Insolvency,DISBURS 40,09/09/2016,"1,890.00",100701,PARROTT & COALES LLP SOLICITORS
1.01264E+15,1264,Housing Benefit Administration,60420,Postage,PST/103243,31/08/2016,"1,886.29",100567,LATCHAM DIRECT
1.01154E+15,1154,Legal Services,60011,Agency Staff,INV166333,23/08/2016,"1,862.50",100318,SELLICK PARTNERSHIP
1.0129E+15,1290,Forward Plans Reserve,60138,Consultancy Fees,7010245261,07/07/2016,"1,858.46",100818,CENTRAL BEDFORDSHIRE COUNCIL
1.01111E+15,1111,Pembroke Road,60097,Reactive Property Maintenance,1931,12/08/2016,"1,850.00",100252,A J NORTH CONSTRUCTION
1.01036E+15,1036,Parking Services Administration,60408,Telephones,AYL037,08/08/2016,"1,837.24",100643,PAY BY PHONE UK LIMITED
1.01147E+15,1147,Depot/Workshop,60109,Fuel & Oil,IN857191,28/07/2016,"1,830.00",100916,PATERSON ENTERPRISES LTD
1.01178E+15,1178,Corporate Management,60137,Finance Fees,0106/AGR,08/07/2016,"1,800.00",100308,ALAN G RUSSELL
1.01178E+15,1178,Corporate Management,60137,Finance Fees,0107/AGR,08/08/2016,"1,800.00",100308,ALAN G RUSSELL
1.01253E+15,1253,LEAP-Satellite Clubs,60011,Agency Staff,131083,23/07/2016,"1,800.00",101639,MILTON KEYNES RUGBY CLUB
1.01154E+15,1154,Legal Services,60011,Agency Staff,INV164022,08/08/2016,"1,800.00",100318,SELLICK PARTNERSHIP
1.01136E+15,1136,Pollution Control,60212,Monitoring Station,6165303,23/08/2016,"1,791.25",100008,RICARDO-AEA LTD
1.01154E+15,1154,Legal Services,60011,Agency Staff,INV162191,11/07/2016,"1,775.00",100318,SELLICK PARTNERSHIP
1.01316E+15,1316,Commercial AVDC,60138,Consultancy Fees,82,25/07/2016,"1,758.75",100398,WOTHERSPOON PR AND MARKETING
1.01269E+15,1269,Debt Management,60540,Cash Handling Costs,0000439717 AVCT,31/07/2016,"1,750.01",101658,ALLPAY
1.01191E+15,1191,Open Spaces,60040,Training-Short Courses,30408476,12/08/2016,"1,750.00",101667,VALE TRAINING SERVICES LTD
1.01144E+15,1144,Mainline Waste Collection,60090,Replace Bins,6780941,03/08/2016,"1,745.10",100865,ESE World Ltd
1.01036E+15,1036,Parking Services Administration,60408,Telephones,AYL038,13/09/2016,"1,738.35",100643,PAY BY PHONE UK LIMITED
1.01264E+15,1264,Housing Benefit Administration,60201,Equipment,213350,20/07/2016,"1,732.00",100354,3C TECHNOLOGY LTD
1.01264E+15,1264,Housing Benefit Administration,60420,Postage,PST/103224,31/07/2016,"1,723.38",100567,LATCHAM DIRECT
1.01264E+15,1264,Housing Benefit Administration,60227,First Maintenance,91374084,16/07/2016,"1,720.00",100251,NORTHGATE PUBLIC SERVICES UK LTD
1.01036E+15,1036,Parking Services Administration,60408,Telephones,AYL036,19/07/2016,"1,715.33",100643,PAY BY PHONE UK LIMITED
1.01152E+15,1152,Director - TA,60423,Subscriptions,364,27/07/2016,"1,705.00",100924,SOUTH EAST ENGLAND COUNCILS
1.01041E+15,1041,Friarscroft MSCP,60097,Reactive Property Maintenance,RTS 10838132,23/08/2016,"1,682.00",100261,OTIS LIMITED
1.0117E+15,1170,Electoral Registration,60434,IER Spend,ERS16_2401,30/09/2016,"1,681.42",100458,ELECTORAL REFORM SERVICES
1.01199E+15,1199,Bedgrove CC,60097,Reactive Property Maintenance,2423,16/09/2016,"1,680.00",100075,CASWELL MAINTENANCE SERVICES LTD
1.01181E+15,1180,Sweeping & Cleansing,60154,Horticultural & Sweeping Contract,OP/I053554,22/08/2016,"1,668.59",100328,SUEZ
1.01111E+15,1111,Pembroke Road,60401,External Archiving,A902/08/16,01/08/2016,"1,656.00",100018,THE ARCHIVE CENTRE LTD
1.01256E+15,1256,Development Management,60011,Agency Staff,1003117,17/08/2016,"1,642.20",101587,OYSTER PARTNERSHIP LTD
1.0127E+15,1270,IT (Support),60221,Hardware Maintenance,1833,20/09/2016,"1,640.36",101852,NEXT SOLUTION LTD
1.01111E+15,1111,Pembroke Road,60401,External Archiving,A773/07/16,01/07/2016,"1,626.00",100018,THE ARCHIVE CENTRE LTD
1.01269E+15,1269,Debt Management,60540,Cash Handling Costs,0000446777AVCT,30/09/2016,"1,606.56",101658,ALLPAY
1.01271E+15,1271,IS/IT,60551,Contribution to IT Reserve-GIS Upgrade,UK-PIN000663,27/07/2016,"1,600.00",100131,ESRI (UK) LTD
1.01256E+15,1256,Development Management,60011,Agency Staff,1005183,28/09/2016,"1,587.45",101587,OYSTER PARTNERSHIP LTD
1.01251E+15,1251,LEAP-Primary Pupil Premium,60201,Equipment,GM0333,05/08/2016,"1,584.00",100581,GRAND MARQUEES
1.01256E+15,1256,Development Management,60011,Agency Staff,1004833,21/09/2016,"1,582.88",101587,OYSTER PARTNERSHIP LTD
1.01253E+15,1253,LEAP-Satellite Clubs,60395,Services,SUN0116,21/07/2016,"1,580.00",101786,MICKLEFIELD JUDO CLUB
1.01098E+15,1098,Community Engagement,60395,Services,583,07/09/2016,"1,566.60",101857,PEOPLE DEVELOPMENT ASSOCIATES LTD
1.01269E+15,1269,Debt Management,60540,Cash Handling Costs,0000443215 AVCT,31/08/2016,"1,564.52",101658,ALLPAY
1.01111E+15,1111,Pembroke Road,60401,External Archiving,A1034/09/16,01/09/2016,"1,564.00",100018,THE ARCHIVE CENTRE LTD
1.01144E+15,1144,Mainline Waste Collection,60112,Vehicle Hire,9020200,18/07/2016,"1,560.00",101757,COLLETT TRANSPORT SERVICES
1.01075E+15,1075,Other Training,60219,Software Maintenance,108,16/08/2016,"1,560.00",101795,MT XPORT CONSULTANTS LTD
1.01256E+15,1256,Development Management,60011,Agency Staff,1002457,03/08/2016,"1,552.15",101587,OYSTER PARTNERSHIP LTD
1.01256E+15,1256,Development Management,60011,Agency Staff,1004465,14/09/2016,"1,545.60",101587,OYSTER PARTNERSHIP LTD
1.01114E+15,1113,Gateway,60097,Reactive Property Maintenance,952535,25/07/2016,"1,540.00",100181,INTERSERVE FS UK LTD
1.01145E+15,1145,Commercial Waste Services,60093,Container-Repair & Maintenance,27438,27/09/2016,"1,530.00",101444,UK CONTAINER MAINTENANCE LIMITED
1.01154E+15,1154,Legal Services,60011,Agency Staff,INV166332,30/08/2016,"1,525.00",100318,SELLICK PARTNERSHIP
1.0123E+15,1230,LEAP - Coordination,60395,Services,INV-1644,28/07/2016,"1,500.00",101824,4 GLOBAL
1.01181E+15,1180,Sweeping & Cleansing,60154,Horticultural & Sweeping Contract,30409667,20/09/2016,"1,468.22",100328,SUEZ
1.01293E+15,1293,Woodlands Project,60138,Consultancy Fees,RIC00573,28/07/2016,"1,465.20",100650,AITCHISON RAFFETY
1.01238E+15,1238,LEAP-Sportivate,60395,Services,176,07/08/2016,"1,440.00",100891,AYLESBURY RUGBY CLUB
1.01157E+15,1157,Flexitime Scheme,60217,Flexi Time Scheme,34246,02/08/2016,"1,417.92",101160,BODET LTD
1.01253E+15,1253,LEAP-Satellite Clubs,60011,Agency Staff,1055,01/08/2016,"1,395.00",101145,DISABILITY KARATE FEDERATION
1.01134E+15,1134,Carbon Management,60515,Carbon Management,SIN019324,15/09/2016,"1,392.00",100499,ORSIS UK LTD
1.01173E+15,1173,European Elections,60420,Postage,9052565011,18/07/2016,"1,387.40",100307,ROYAL MAIL
1.01114E+15,1113,Gateway,60098,Planned Property Maintenance,2994,05/08/2016,"1,372.38",100621,GREENFLOW URINAL CONTROL SYSTEMS
1.0117E+15,1170,Electoral Registration,60420,Postage,84491,29/09/2016,"1,368.64",100825,FCS LASERMAIL LTD
1.01238E+15,1238,LEAP-Sportivate,60395,Services,SUMMER 2016 SPORTIVATE,01/09/2016,"1,350.00",100849,CHESHAM CRICKET CLUB
1.0127E+15,1270,IT (Support),60221,Hardware Maintenance,59619,30/09/2016,"1,350.00",100257,ONI PLC
1.0114E+15,1140,Disabled Facility Grants,60358,Disabled Facilities Grant,13806,28/09/2016,"1,345.00",100281,POWERGUARDS INC RAMPING SYSTEMS LTD
1.01256E+15,1256,Development Management,60011,Agency Staff,1004117,07/09/2016,"1,340.63",101587,OYSTER PARTNERSHIP LTD
1.0129E+15,1290,Forward Plans Reserve,60138,Consultancy Fees,14779,21/09/2016,"1,339.50",101733,VIVID RESOURCING LTD
1.01079E+15,1079,Corporate Safety,60140,Specialist Advice,TVLRFV2,15/09/2016,"1,338.00",100058,BUCKS COUNTY COUNCIL GENERAL ACCOUNT
1.01114E+15,1113,Gateway,60104,Water,69012-88119,18/08/2016,"1,332.03",100403,THAMES WATER UTILITIES LTD
1.0129E+15,1290,Forward Plans Reserve,60138,Consultancy Fees,14969,28/09/2016,"1,330.00",101733,VIVID RESOURCING LTD
1.0129E+15,1290,Forward Plans Reserve,60138,Consultancy Fees,14616,14/09/2016,"1,320.50",101733,VIVID RESOURCING LTD
1.01151E+15,1151,Chief Executive,60040,Training-Short Courses,5342,11/07/2016,"1,295.00",101704,ADVANCED MANAGEMENT SKILLS
1.01151E+15,1151,Chief Executive,60040,Training-Short Courses,5345,26/08/2016,"1,295.00",101704,ADVANCED MANAGEMENT SKILLS
1.01078E+15,1078,Members Training,60058,Training-Members,DM7127,12/09/2016,"1,283.00",101854,LINK SUPPORT SERVICES (UK) LTD
1.01058E+15,1058,Town Centre Manager,60260,Summer School Holidays,INV-13200,26/07/2016,"1,281.81",100583,EXTREME ADVENTURE LIMITED
1.01058E+15,1058,Town Centre Manager,60260,Summer School Holidays,INV-13206,01/08/2016,"1,281.81",100583,EXTREME ADVENTURE LIMITED
1.01058E+15,1058,Town Centre Manager,60260,Summer School Holidays,INV-13211,04/08/2016,"1,281.81",100583,EXTREME ADVENTURE LIMITED
1.01058E+15,1058,Town Centre Manager,60260,Summer School Holidays,INV-13228,19/08/2016,"1,281.81",100583,EXTREME ADVENTURE LIMITED
1.01058E+15,1058,Town Centre Manager,60260,Summer School Holidays,INV-13238,23/08/2016,"1,281.81",100583,EXTREME ADVENTURE LIMITED
1.01058E+15,1058,Town Centre Manager,60260,Summer School Holidays,INV-13266,16/09/2016,"1,281.81",100583,EXTREME ADVENTURE LIMITED
1.01041E+15,1041,Friarscroft MSCP,60098,Planned Property Maintenance,1233430,01/09/2016,"1,272.18",100261,OTIS LIMITED
1.01314E+15,1314,Community Sport Activation Fund,60070,Facility Hire,163562/10904,05/08/2016,"1,266.79",100344,STOKE MANDEVILLE STADIUM
1.0117E+15,1170,Electoral Registration,60420,Postage,9052875803,05/09/2016,"1,242.88",100307,ROYAL MAIL
1.01144E+15,1144,Mainline Waste Collection,60112,Vehicle Hire,IV184663,29/07/2016,"1,225.00",101586,Riverside Truck Rental Ltd
1.01144E+15,1144,Mainline Waste Collection,60040,Training-Short Courses,22108,14/07/2016,"1,225.00",100094,COMMERCIAL TRANSPORT TRAINING
1.01129E+15,1129,Hackney Carriage/Private Hire,60394,Supplies,T26375,05/08/2016,"1,225.00",100245,NEWAUTO LIMITED
1.0127E+15,1270,IT (Support),60011,Agency Staff,9536,18/08/2016,"1,214.12",100335,SOUTH EAST APPRENTICESHIP COMPANY
1.01221E+15,1221,Paralympic Legacy,60447,Events & Community Participation,162972/10904,26/07/2016,"1,205.42",100344,STOKE MANDEVILLE STADIUM
1.01129E+15,1129,Hackney Carriage/Private Hire,60394,Supplies,T26504,23/09/2016,"1,205.00",100245,NEWAUTO LIMITED
1.01293E+15,1293,Woodlands Project,60138,Consultancy Fees,RIC00575,31/08/2016,"1,200.00",100650,AITCHISON RAFFETY
1.01316E+15,1316,Commercial AVDC,60138,Consultancy Fees,80,12/07/2016,"1,198.75",100398,WOTHERSPOON PR AND MARKETING
1.01261E+15,1261,Heritage,60011,Agency Staff,1001799,20/07/2016,"1,191.53",101587,OYSTER PARTNERSHIP LTD
1.01113E+15,1113,Gateway,60405,Catering,14025,26/08/2016,"1,191.40",100609,ACCENT CATERING SERVICES LTD
1.01201E+15,1201,Alfred Rose CC,60097,Reactive Property Maintenance,995,24/08/2016,"1,190.00",101674,Litchfield Floor Renovations
1.01271E+15,1271,IS/IT,60546,Contribution to IT Reserve-Finance,U001145,30/09/2016,"1,188.45",100356,TECHNOLOGY ONE UK LTD
1.01072E+15,1072,Qualified Training,60055,Post Entry Training-Staff,19343,24/08/2016,"1,182.00",100026,ASSOCIATION OF ELECTORAL ADMINISTRATORS
1.01242E+15,1242,LEAP-School Games,60201,Equipment,16 4069,03/08/2016,"1,180.74",100735,FIRST FOR TROPHIES
1.01261E+15,1261,Heritage,60011,Agency Staff,1002458,03/08/2016,"1,179.45",101587,OYSTER PARTNERSHIP LTD
1.01221E+15,1221,Paralympic Legacy,60447,Events & Community Participation,JAM1749,01/09/2016,"1,174.00",100184,JAMTASTIC DESIGN
1.01123E+15,1123,Environmental Health Administration,60011,Agency Staff,198804,24/08/2016,"1,147.00",100819,OSBORNE RICHARDSON
1.01123E+15,1123,Environmental Health Administration,60011,Agency Staff,199436,14/09/2016,"1,147.00",100819,OSBORNE RICHARDSON
1.01123E+15,1123,Environmental Health Administration,60011,Agency Staff,199648,21/09/2016,"1,147.00",100819,OSBORNE RICHARDSON
1.01123E+15,1123,Environmental Health Administration,60011,Agency Staff,199856,28/09/2016,"1,147.00",100819,OSBORNE RICHARDSON
1.01169E+15,1169,Local Land Charges,60420,Postage,81128918,31/08/2016,"1,142.88",100894,DX NETWORK SERVICES LIMITED
1.01114E+15,1114,Oculus & Conference Centre,60407,Building Cleaning Contract,25172,09/08/2016,"1,137.27",100760,LOUGHTON CONTRACTS PLC
1.01147E+15,1147,Depot/Workshop,60083,Security,8245,03/07/2016,"1,133.00",100000,ACE SECURITY
1.01147E+15,1147,Depot/Workshop,60083,Security,8252,10/07/2016,"1,133.00",100000,ACE SECURITY
1.01147E+15,1147,Depot/Workshop,60083,Security,8263,17/07/2016,"1,133.00",100000,ACE SECURITY
1.01147E+15,1147,Depot/Workshop,60083,Security,8270,24/07/2016,"1,133.00",100000,ACE SECURITY
1.01147E+15,1147,Depot/Workshop,60083,Security,8313,21/08/2016,"1,133.00",100000,ACE SECURITY
1.01147E+15,1147,Depot/Workshop,60083,Security,8321,28/08/2016,"1,133.00",100000,ACE SECURITY
1.01147E+15,1147,Depot/Workshop,60083,Security,8304,14/08/2016,"1,133.00",100000,ACE SECURITY
1.01147E+15,1147,Depot/Workshop,60083,Security,8292,07/08/2016,"1,133.00",100000,ACE SECURITY
1.01147E+15,1147,Depot/Workshop,60083,Security,8283,31/07/2016,"1,133.00",100000,ACE SECURITY
1.01147E+15,1147,Depot/Workshop,60083,Security,8331,04/09/2016,"1,133.00",100000,ACE SECURITY
1.01147E+15,1147,Depot/Workshop,60083,Security,8341,11/09/2016,"1,133.00",100000,ACE SECURITY
1.01147E+15,1147,Depot/Workshop,60083,Security,8350,18/09/2016,"1,133.00",100000,ACE SECURITY
1.01147E+15,1147,Depot/Workshop,60083,Security,8364,25/09/2016,"1,133.00",100000,ACE SECURITY
1.0127E+15,1270,IT (Support),60219,Software Maintenance,HSMLI1600031,19/07/2016,"1,123.30",100476,HORNBILL SYSTEMS LTD
1.01238E+15,1238,LEAP-Sportivate,60395,Services,9,24/09/2016,"1,118.00",100657,AT THE EDGE PROJECT POND PARK RANGERS FC
1.01221E+15,1221,Paralympic Legacy,60447,Events & Community Participation,E21263,31/08/2016,"1,110.00",100696,FASTER PAYMENTS
1.01253E+15,1253,LEAP-Satellite Clubs,60011,Agency Staff,YOGA HIGH SCHOOL,19/07/2016,"1,100.00",100601,YOGA 4 TEACHERS PHILIPPA GOLDIE
1.01113E+15,1113,Gateway,60097,Reactive Property Maintenance,INV-2526,06/07/2016,"1,095.00",100057,BTP CONTROL LTD
1.01238E+15,1238,LEAP-Sportivate,60385,"Advertising, Publicity & Marketing",C28510,29/09/2016,"1,095.00",100198,T KING ASSOCIATES LTD
1.01257E+15,1257,Development Management Reserve,60138,Consultancy Fees,5,01/08/2016,"1,060.00",101712,TERRY NEWTON
1.01317E+15,1317,EU Referendum,60014,Election Staffing Costs,13949,29/07/2016,"1,057.37",100609,ACCENT CATERING SERVICES LTD
1.01144E+15,1144,Mainline Waste Collection,60202,Container Purchase,53124,12/09/2016,"1,056.00",101841,COLDENE CASTORS LTD
1.0127E+15,1270,IT (Support),60219,Software Maintenance,UK10/072016/9431,01/07/2016,"1,048.52",100586,VODAFONE LIMITED
1.01147E+15,1147,Depot/Workshop,60112,Vehicle Hire,348351,30/09/2016,"1,046.00",101687,ARDENT HIRE SOLUTIONS
1.01109E+15,1109,66 High Street,60097,Reactive Property Maintenance,2472,19/08/2016,"1,040.00",100390,WELLS & MUNDAY
1.01114E+15,1113,Gateway,60408,Telephones,5973588,01/07/2016,"1,036.99",100686,DAISY GROUP LIMITED
1.01256E+15,1256,Development Management,60385,"Advertising, Publicity & Marketing",3768810,14/07/2016,"1,035.00",100191,JOHNSTON PRESS MIDLANDS DIVISION
1.01113E+15,1113,Gateway,60184,"Furniture, Fittings & Equipment",AR48439,15/08/2016,"1,030.00",100382,XMA LIMITED
1.01154E+15,1154,Legal Services,60011,Agency Staff,INV167809,12/09/2016,"1,025.00",100318,SELLICK PARTNERSHIP
1.01267E+15,1267,NNDR,60517,Insolvency,79762,08/09/2016,"1,020.00",100701,PARROTT & COALES LLP SOLICITORS
1.01152E+15,1152,Director - TA,60445,HS2 Costs,2016005,19/08/2016,"1,020.00",100755,RICHARD HISCOCK
1.01181E+15,1181,Parks Administration,60160,Horticultural Contract-Variation Orders,4734,20/07/2016,"1,020.00",100396,WINDOWFLOWERS LTD
1.01147E+15,1147,Depot/Workshop,60112,Vehicle Hire,332666,07/08/2016,"1,012.00",101687,ARDENT HIRE SOLUTIONS
1.01036E+15,1036,Parking Services Administration,60100,Car Park Security,8244,03/07/2016,"1,012.00",100000,ACE SECURITY
1.01036E+15,1036,Parking Services Administration,60100,Car Park Security,8251,10/07/2016,"1,012.00",100000,ACE SECURITY
1.01036E+15,1036,Parking Services Administration,60100,Car Park Security,8262,17/07/2016,"1,012.00",100000,ACE SECURITY
1.01036E+15,1036,Parking Services Administration,60100,Car Park Security,8272,24/07/2016,"1,012.00",100000,ACE SECURITY
1.01036E+15,1036,Parking Services Administration,60100,Car Park Security,8282,31/07/2016,"1,012.00",100000,ACE SECURITY
1.01036E+15,1036,Parking Services Administration,60100,Car Park Security,8303,14/08/2016,"1,012.00",100000,ACE SECURITY
1.01036E+15,1036,Parking Services Administration,60100,Car Park Security,8291,07/08/2016,"1,012.00",100000,ACE SECURITY
1.01036E+15,1036,Parking Services Administration,60100,Car Park Security,8312,21/08/2016,"1,012.00",100000,ACE SECURITY
1.01036E+15,1036,Parking Services Administration,60100,Car Park Security,8320,28/08/2016,"1,012.00",100000,ACE SECURITY
1.01036E+15,1036,Parking Services Administration,60100,Car Park Security,8330,04/09/2016,"1,012.00",100000,ACE SECURITY
1.01036E+15,1036,Parking Services Administration,60100,Car Park Security,8340,11/09/2016,"1,012.00",100000,ACE SECURITY
1.01036E+15,1036,Parking Services Administration,60100,Car Park Security,8349,18/09/2016,"1,012.00",100000,ACE SECURITY
1.01036E+15,1036,Parking Services Administration,60100,Car Park Security,8363,25/09/2016,"1,012.00",100000,ACE SECURITY
1.01238E+15,1238,LEAP-Sportivate,60395,Services,30707,13/07/2016,"1,010.00",101579,LONGRIDGE ACTIVITY CENTRE
1.01219E+15,1218,Arts Activities,60395,Services,ROALD DAHL,05/07/2016,"1,000.00",100525,SOL SAMBA
1.01219E+15,1218,Arts Activities,60395,Services,INV2014137,25/08/2016,"1,000.00",100043,MRS J BAXTER
1.01151E+15,1151,Chief Executive,60138,Consultancy Fees,1.46801E+14,01/07/2016,"1,000.00",101625,WELLS PARK COMMUNICATIONS LTD
1.01253E+15,1253,LEAP-Satellite Clubs,60011,Agency Staff,3RD INSTAL OF FUNDING,26/07/2016,"1,000.00",100900,JANE DOUGLASS FITNESS AND DANCE
1.01267E+15,1267,NNDR,60517,Insolvency,79542,30/08/2016,998.28,100701,PARROTT & COALES LLP SOLICITORS
1.01253E+15,1253,LEAP-Satellite Clubs,60395,Services,1ST INSTALMENT,15/09/2016,990,100840,LOUGHTON LODGERS JUNIOR BADMINTON CLUB
1.01123E+15,1123,Environmental Health Administration,60011,Agency Staff,199195,07/09/2016,984.25,100819,OSBORNE RICHARDSON
1.01253E+15,1253,LEAP-Satellite Clubs,60395,Services,110129,31/08/2016,980,100913,AMERSHAM & WYCOMBE COLLEGE
1.01144E+15,1144,Mainline Waste Collection,60202,Container Purchase,SINV-099126,13/08/2016,972.4,101443,GELPACK EXCELSIOR LIMITED
1.01152E+15,1152,Director - TA,60445,HS2 Costs,2016004,27/07/2016,969.6,100755,RICHARD HISCOCK
1.01144E+15,1144,Mainline Waste Collection,60201,Equipment,82271,12/09/2016,965,100384,VISION TECHNIQUES (UK) LTD
1.0114E+15,1140,Disabled Facility Grants,60358,Disabled Facilities Grant,48834,28/09/2016,965,100095,R AND D CONTRACTORS
1.01264E+15,1264,Housing Benefit Administration,60201,Equipment,AI-379553,16/08/2016,951.71,101608,BACK IN ACTION
1.01144E+15,1144,Mainline Waste Collection,60202,Container Purchase,SINV-099125,13/08/2016,951.18,101443,GELPACK EXCELSIOR LIMITED
1.01144E+15,1144,Mainline Waste Collection,60202,Container Purchase,SINV-099177,16/08/2016,951.18,101443,GELPACK EXCELSIOR LIMITED
1.01264E+15,1264,Housing Benefit Administration,60227,First Maintenance,91375943,22/08/2016,950,100251,NORTHGATE PUBLIC SERVICES UK LTD
1.01267E+15,1267,NNDR,60141,Bailiffs Commission,170632,09/09/2016,948.09,100055,BRISTOW AND SUTOR
1.01114E+15,1113,Gateway,60104,Water,90830-52349,19/09/2016,939.72,100403,THAMES WATER UTILITIES LTD
1.01181E+15,1181,Parks Administration,60159,Trees,0019/11624,01/07/2016,937.5,100751,RA INFORMATION SYSTEMS
1.01253E+15,1253,LEAP-Satellite Clubs,60011,Agency Staff,RC1608,26/07/2016,936.5,101734,FARNHAM COMMON SPORTS CLUB
1.01058E+15,1058,Town Centre Manager,60260,Summer School Holidays,363865,31/08/2016,936,100229,MIX 96
1.01146E+15,1146,Garden Waste Scheme,60209,Waste Disposal,20156,31/08/2016,931.38,101821,MATERIAL CHANGE
1.01094E+15,1094,Aylesbury Shopmobility,60187,Equipment Repairs,9734,21/07/2016,925,100294,RB MOBILITY SERVICES LTD
1.01253E+15,1253,LEAP-Satellite Clubs,60011,Agency Staff,2ND INSTALMENT,31/07/2016,920.65,101703,CHALFONT ST PETER TENNIS CLUB
1.01147E+15,1147,Depot/Workshop,60112,Vehicle Hire,337689,31/08/2016,920,101687,ARDENT HIRE SOLUTIONS
1.01147E+15,1147,Depot/Workshop,60112,Vehicle Hire,337690,31/08/2016,920,101687,ARDENT HIRE SOLUTIONS
1.01268E+15,1268,Finance (Governance),60423,Subscriptions,1445099,27/07/2016,919,100905,DUN & BRADSTREET LTD
1.0113E+15,1129,Hackney Carriage/Private Hire,60145,Criminal Records Bureau,R0035655,26/08/2016,917,100687,CAPITA RESOURCING LIMITED
1.01271E+15,1271,IS/IT,60545,Contribution to IT Reserve,1833,20/09/2016,912.05,101852,NEXT SOLUTION LTD
1.01129E+15,1129,Hackney Carriage/Private Hire,60394,Supplies,T26398,12/08/2016,910.4,100245,NEWAUTO LIMITED
1.01257E+15,1257,Development Management Reserve,60138,Consultancy Fees,4,15/08/2016,900,101712,TERRY NEWTON
1.01242E+15,1242,LEAP-School Games,60011,Agency Staff,476,01/07/2016,900,100197,THE KIDZ PAINTING PARTY COMPANY
1.01057E+15,1057,Communications & Marketing,60040,Training-Short Courses,EF345,20/09/2016,898.2,100645,HAYMARKET MEDIA GROUP LIMITED
1.01256E+15,1256,Development Management,60623,IESE Development,9453,19/07/2016,892.5,100335,SOUTH EAST APPRENTICESHIP COMPANY
1.01057E+15,1057,Communications & Marketing,60236,County Show,87,16/09/2016,892.5,100398,WOTHERSPOON PR AND MARKETING
1.01129E+15,1129,Hackney Carriage/Private Hire,60394,Supplies,T26274,01/07/2016,892,100245,NEWAUTO LIMITED
1.01113E+15,1113,Gateway,60098,Planned Property Maintenance,60315,08/08/2016,890,100393,WEST LONDON SECURITY
1.01253E+15,1253,LEAP-Satellite Clubs,60201,Equipment,PF19,04/07/2016,890,101715,THE GRANGE SCHOOL
1.01173E+15,1173,European Elections,60420,Postage,9052565011,18/07/2016,882.75,100307,ROYAL MAIL
1.0117E+15,1170,Electoral Registration,60434,IER Spend,ERS16_1978,31/08/2016,881.2,100458,ELECTORAL REFORM SERVICES
1.01191E+15,1191,Open Spaces,60157,Hardscaping & Furniture,1922,08/08/2016,880,100252,A J NORTH CONSTRUCTION
1.01133E+15,1133,Dog Warden Scheme,60166,Pest Control Contractor,39577,31/08/2016,877.46,100313,SDK ENVIRONMENTAL LTD
1.01267E+15,1267,NNDR,60141,Bailiffs Commission,169855,25/08/2016,877.21,100055,BRISTOW AND SUTOR
1.01144E+15,1144,Mainline Waste Collection,60112,Vehicle Hire,IV184668,29/07/2016,875,101586,Riverside Truck Rental Ltd
1.01144E+15,1144,Mainline Waste Collection,60112,Vehicle Hire,IV184666,29/07/2016,875,101586,Riverside Truck Rental Ltd
1.01144E+15,1144,Mainline Waste Collection,60112,Vehicle Hire,IV187472,16/08/2016,875,101586,Riverside Truck Rental Ltd
1.01198E+15,1197,District Play Services,60113,Vehicle Leases,SL04014448INV,30/08/2016,868,100250,NORTHGATE VEHICLE HIRE LTD
1.01221E+15,1220,Sports,60150,Swim Development,2485,21/09/2016,866.2,100051,BOOKER PARK SCHOOL
1.0129E+15,1290,Forward Plans Reserve,60138,Consultancy Fees,14968,28/09/2016,858,101733,VIVID RESOURCING LTD
1.01299E+15,1299,Car Pooling Scheme,60112,Vehicle Hire,U133D4YY3KX,11/08/2016,857.64,100127,ENTERPRISE RENT A CAR
1.01289E+15,1289,Forward Planning,60011,Agency Staff,14438,07/09/2016,855,101733,VIVID RESOURCING LTD
1.01256E+15,1256,Development Management,60385,"Advertising, Publicity & Marketing",3815178,22/08/2016,855,100191,JOHNSTON PRESS MIDLANDS DIVISION
1.01256E+15,1256,Development Management,60385,"Advertising, Publicity & Marketing",3822544,17/08/2016,855,100191,JOHNSTON PRESS MIDLANDS DIVISION
1.01195E+15,1195,Waterside Theatre,60036,TUPE Obligations,SIAYL32754,27/07/2016,843.66,100013,AMBASSADOR THEATRE GROUP LTD
1.01195E+15,1195,Waterside Theatre,60036,TUPE Obligations,SIAYL32769,24/08/2016,843.66,100013,AMBASSADOR THEATRE GROUP LTD
1.01293E+15,1293,Woodlands Project,60138,Consultancy Fees,2958,01/09/2016,841.2,100652,SWIFT ECOLOGY
1.01253E+15,1253,LEAP-Satellite Clubs,60395,Services,FIRST INSTALMENT,01/08/2016,840,100840,LOUGHTON LODGERS JUNIOR BADMINTON CLUB
1.01221E+15,1220,Sports,60395,Services,2625,07/09/2016,840,100372,ULTIMATECOACH LTD
1.01253E+15,1253,LEAP-Satellite Clubs,60011,Agency Staff,AIKDO COACHING,09/09/2016,840,100717,COLIN BOND
1.01238E+15,1238,LEAP-Sportivate,60395,Services,2230013657,01/08/2016,836,100441,BUCKS & MILTON KEYNES FIRE AUTHORITY
1.01057E+15,1057,Communications & Marketing,60127,Marketing Strategy for the Vale,131392,13/07/2016,835,100732,SHARED CREATIVE STUART MILLER AND IAN COLLETT
1.01267E+15,1267,NNDR,60143,Profit Costs,79158,12/07/2016,834,100701,PARROTT & COALES LLP SOLICITORS
1.0113E+15,1129,Hackney Carriage/Private Hire,60145,Criminal Records Bureau,R0034724,26/07/2016,833,100687,CAPITA RESOURCING LIMITED
1.01253E+15,1253,LEAP-Satellite Clubs,60395,Services,SECOND INSTALMENT,01/08/2016,830,100840,LOUGHTON LODGERS JUNIOR BADMINTON CLUB
1.01289E+15,1289,Forward Planning,60011,Agency Staff,14260,31/08/2016,819,101733,VIVID RESOURCING LTD
1.01267E+15,1267,NNDR,60142,Tracing Agent,AV-SB-018,05/07/2016,808,100284,PREMIER  LOCATE LTD
1.01253E+15,1253,LEAP-Satellite Clubs,60011,Agency Staff,2ND INSTALMENT,02/08/2016,805,101650,FLAMES NETBALL CLUB
1.01114E+15,1113,Gateway,60104,Water,33388-01463,15/08/2016,803.85,100403,THAMES WATER UTILITIES LTD
1.01268E+15,1268,Finance (Governance),60138,Consultancy Fees,U001030,01/07/2016,800,100356,TECHNOLOGY ONE UK LTD
1.01268E+15,1268,Finance (Governance),60138,Consultancy Fees,U0001065,29/07/2016,800,100356,TECHNOLOGY ONE UK LTD
1.01133E+15,1133,Dog Warden Scheme,60166,Pest Control Contractor,39770,30/09/2016,798.72,100313,SDK ENVIRONMENTAL LTD
1.01262E+15,1262,Building Control,60404,Scanning,440026786,12/09/2016,797.75,100350,HUGH SYMONS INFORMATION MANAGEMENT LTD
1.01253E+15,1253,LEAP-Satellite Clubs,60395,Services,THREE INSTALMENT,01/08/2016,797,100840,LOUGHTON LODGERS JUNIOR BADMINTON CLUB
1.01036E+15,1036,Parking Services Administration,60418,Stationery,226476,08/07/2016,793.44,100933,Nagels UK Ltd
1.01262E+15,1262,Building Control,60215,Purchase of Name Plates,4604,19/09/2016,792.39,100158,R S HAYNES
1.01242E+15,1242,LEAP-School Games,60069,Rent,52516,14/07/2016,790,100256,JOHN O'CONNOR (GROUNDS MAIN'T) LIMITED
1.01289E+15,1289,Forward Planning,60201,Equipment,14965,31/07/2016,789.46,100072,CAPTAIN CYAN
1.01238E+15,1238,LEAP-Sportivate,60395,Services,2057,21/07/2016,784,100656,NIGEL WILLARD TENNIS
1.01267E+15,1267,NNDR,60142,Tracing Agent,AV-SB-019,16/09/2016,783,100284,PREMIER  LOCATE LTD
1.01238E+15,1238,LEAP-Sportivate,60395,Services,SINV-172875,02/09/2016,780,101614,GREENWICH LEISURE LTD
1.01144E+15,1144,Mainline Waste Collection,60108,Parts,53073,08/09/2016,780,101841,COLDENE CASTORS LTD
1.01109E+15,1109,66 High Street,60097,Reactive Property Maintenance,90126829,01/08/2016,778.32,100903,G4S SECURE SOLUTIONS UK LTD
1.01256E+15,1256,Development Management,60385,"Advertising, Publicity & Marketing",3831087,24/08/2016,765,100191,JOHNSTON PRESS MIDLANDS DIVISION
1.0113E+15,1129,Hackney Carriage/Private Hire,60145,Criminal Records Bureau,R0036357,26/09/2016,763,100687,CAPITA RESOURCING LIMITED
1.01253E+15,1253,LEAP-Satellite Clubs,60395,Services,BADOAK03,05/07/2016,759,100902,BADMINATION
1.01123E+15,1123,Environmental Health Administration,60418,Stationery,INV550773,26/07/2016,750,101645,CHARTERED INST OF ENVIRONMENTAL HEALTH
1.01238E+15,1238,LEAP-Sportivate,60395,Services,452016,07/09/2016,750,101811,FARNHAM ROYAL RFC
1.0127E+15,1270,IT (Support),60083,Security,935523028,04/08/2016,750,101758,INTEL CORPORATION UK LTD
1.01199E+15,1199,Bedgrove CC,60097,Reactive Property Maintenance,16-IN-1274,15/07/2016,750,101779,PAUL HAWKINS DEVELOPMENT
1.01267E+15,1267,NNDR,60001,Basic Salary,9685,14/09/2016,749.08,100335,SOUTH EAST APPRENTICESHIP COMPANY
1.01048E+15,1048,Waitrose MSCP,60097,Reactive Property Maintenance,14397,04/07/2016,748.2,100110,DARKE & TAYLOR LTD
1.011E+15,1100,Community Safety,60322,Project Development Fund,117537,10/08/2016,747.5,101184,SELECTAMARK SECURITY SYSTEMS PLC
1.01262E+15,1262,Building Control,60215,Purchase of Name Plates,4597,02/09/2016,744.17,100158,R S HAYNES
1.01267E+15,1267,NNDR,60001,Basic Salary,9571,18/08/2016,739.32,100335,SOUTH EAST APPRENTICESHIP COMPANY
1.01262E+15,1262,Building Control,60215,Purchase of Name Plates,4602,02/09/2016,738.46,100158,R S HAYNES
1.01267E+15,1267,NNDR,60001,Basic Salary,9417,19/07/2016,736.88,100335,SOUTH EAST APPRENTICESHIP COMPANY
1.01221E+15,1221,Paralympic Legacy,60447,Events & Community Participation,5268,03/09/2016,735,101717,THAMES VALLEY EVENTS
1.01253E+15,1253,LEAP-Satellite Clubs,60201,Equipment,AR1000139,20/07/2016,732,101501,AMERSHAM SCHOOL
1.01198E+15,1197,District Play Services,60113,Vehicle Leases,SL04014447INV,30/08/2016,728,100250,NORTHGATE VEHICLE HIRE LTD
1.01219E+15,1218,Arts Activities,60395,Services,DEPROALDDAHL 020716,05/07/2016,722.5,100531,TOQUE TAMBOR
1.01058E+15,1058,Town Centre Manager,60261,Streetlife,100209/16,24/08/2016,720,100233,MONTANA EVENTS LTD
1.01221E+15,1220,Sports,60395,Services,2627,07/09/2016,720,100372,ULTIMATECOACH LTD
1.01267E+15,1267,NNDR,60141,Bailiffs Commission,168540,15/07/2016,715.94,100055,BRISTOW AND SUTOR
1.0117E+15,1170,Electoral Registration,60040,Training-Short Courses,19559,22/09/2016,715,100026,ASSOCIATION OF ELECTORAL ADMINISTRATORS
1.01113E+15,1113,Gateway,60098,Planned Property Maintenance,S-30240,25/09/2016,713.12,100903,G4S SECURE SOLUTIONS UK LTD
1.01261E+15,1261,Heritage,60011,Agency Staff,1003118,17/08/2016,711.78,101587,OYSTER PARTNERSHIP LTD
1.01299E+15,1299,Car Pooling Scheme,60112,Vehicle Hire,U133D4R330C,09/07/2016,707.08,100127,ENTERPRISE RENT A CAR
1.01299E+15,1299,Car Pooling Scheme,60112,Vehicle Hire,U133D4R31ZB,09/07/2016,707.08,100127,ENTERPRISE RENT A CAR
1.0118E+15,1180,Sweeping & Cleansing,60154,Horticultural & Sweeping Contract,14462,09/08/2016,700,100425,ALLAN DYSON ASBESTOS SERVICES
1.01147E+15,1147,Depot/Workshop,60201,Equipment,31110,29/09/2016,700,100964,CAWKWELL PRECISION ENGINEERING CO LTD
1.01147E+15,1147,Depot/Workshop,60112,Vehicle Hire,334550,23/08/2016,694.81,101687,ARDENT HIRE SOLUTIONS
1.01314E+15,1314,Community Sport Activation Fund,60070,Facility Hire,2486,21/09/2016,693,100051,BOOKER PARK SCHOOL
1.01314E+15,1314,Community Sport Activation Fund,60070,Facility Hire,2525,27/09/2016,693,100051,BOOKER PARK SCHOOL
1.01144E+15,1144,Mainline Waste Collection,60201,Equipment,52502,17/08/2016,692,100268,PELICAN PRINT & DESIGN LTD
1.01238E+15,1238,LEAP-Sportivate,60395,Services,SINV-172444,26/08/2016,690,101614,GREENWICH LEISURE LTD
1.01253E+15,1253,LEAP-Satellite Clubs,60395,Services,FUNDING1,11/08/2016,683,100065,BUCKS SQUASH DEVOS / BUCKS JUNIOR SQUASH
1.01111E+15,1111,Pembroke Road,60097,Reactive Property Maintenance,1930,12/08/2016,680,100252,A J NORTH CONSTRUCTION
1.01306E+15,1306,LEAP-Core Funding,60010,Basic Wages,9389,19/07/2016,678,100335,SOUTH EAST APPRENTICESHIP COMPANY
1.01306E+15,1306,LEAP-Core Funding,60010,Basic Wages,9543,18/08/2016,678,100335,SOUTH EAST APPRENTICESHIP COMPANY
1.01306E+15,1306,LEAP-Core Funding,60010,Basic Wages,9653,14/09/2016,678,100335,SOUTH EAST APPRENTICESHIP COMPANY
1.01098E+15,1098,Community Engagement,60385,"Advertising, Publicity & Marketing",52793,08/09/2016,678,100268,PELICAN PRINT & DESIGN LTD
1.01267E+15,1267,NNDR,60141,Bailiffs Commission,169577,25/08/2016,676.41,100055,BRISTOW AND SUTOR
1.01079E+15,1079,Corporate Safety,60038,Lone Workers Scheme,IN32700,31/07/2016,673.5,100097,SOLO PROTECT LIMITED
1.01079E+15,1079,Corporate Safety,60038,Lone Workers Scheme,IN33797,01/08/2016,673.5,100097,SOLO PROTECT LIMITED
1.01079E+15,1079,Corporate Safety,60038,Lone Workers Scheme,IN34874,30/09/2016,673.5,100097,SOLO PROTECT LIMITED
1.01238E+15,1238,LEAP-Sportivate,60395,Services,31677,26/09/2016,673,101579,LONGRIDGE ACTIVITY CENTRE
1.01039E+15,1039,Upper Hundreds MSCP,60097,Reactive Property Maintenance,8113,17/08/2016,668.02,100897,WALLGATE LTD
1.01175E+15,1175,Parish Elections,60420,Postage,9052990963,22/09/2016,667.31,100307,ROYAL MAIL
1.01219E+15,1218,Arts Activities,60395,Services,GM0328,26/07/2016,663,100581,GRAND MARQUEES
1.01256E+15,1256,Development Management,60385,"Advertising, Publicity & Marketing",3853189,01/09/2016,660,100191,JOHNSTON PRESS MIDLANDS DIVISION
1.01143E+15,1143,Business Administration Office,60011,Agency Staff,9383,19/07/2016,657.67,100335,SOUTH EAST APPRENTICESHIP COMPANY
1.01264E+15,1264,Housing Benefit Administration,60219,Software Maintenance,102105,08/08/2016,650,101527,OVALTECH LTD
1.01058E+15,1058,Town Centre Manager,60276,Mix 96 Banner Advertising,358018,31/07/2016,650,100229,MIX 96
1.01144E+15,1144,Mainline Waste Collection,60175,Haulage & Disposal,P11363,31/08/2016,650,100069,CAMIER'S
1.0114E+15,1140,Disabled Facility Grants,60358,Disabled Facilities Grant,1655,07/09/2016,650,101451,EVOLUTION DESIGN AND BUILD
1.01065E+15,1065,Personnel Services,60138,Consultancy Fees,34326,22/08/2016,650,101160,BODET LTD
1.01125E+15,1125,Premises Licenses,60394,Supplies,AF1239,18/08/2016,645,100014,AMBERFLARE
1.01143E+15,1143,Business Administration Office,60011,Agency Staff,9537,18/08/2016,643.26,100335,SOUTH EAST APPRENTICESHIP COMPANY
1.01271E+15,1270,IT (Support),60219,Software Maintenance,7010807,12/07/2016,640,100170,IDOX SOFTWARE LTD
1.01201E+15,1201,Alfred Rose CC,60097,Reactive Property Maintenance,12325,10/07/2016,640,100030,A W R PICKERSGILL LIMITED
1.01147E+15,1147,Depot/Workshop,60108,Parts,41120,22/08/2016,640,100388,WASTEPARTS UK LTD
1.01257E+15,1257,Development Management Reserve,60138,Consultancy Fees,3,05/07/2016,640,101712,TERRY NEWTON
1.0128E+15,1280,Motor Insurance,60020,Public Liability Insurance Excess,U133D4H4XBH,13/07/2016,637.75,100127,ENTERPRISE RENT A CAR
1.01199E+15,1199,Bedgrove CC,60097,Reactive Property Maintenance,2478,06/09/2016,636,100390,WELLS & MUNDAY
1.01181E+15,1181,Parks Administration,60159,Trees,50066576,29/07/2016,630,100645,HAYMARKET MEDIA GROUP LIMITED
1.01256E+15,1256,Development Management,60385,"Advertising, Publicity & Marketing",3878292,21/09/2016,630,100191,JOHNSTON PRESS MIDLANDS DIVISION
1.01073E+15,1073,Corporate Internal Courses,60012,Tutor Fees,SM1/AVDC03/16,15/09/2016,625,100958,ALISON CAMPBELL
1.01144E+15,1144,Mainline Waste Collection,60606,Bartec,81975,30/08/2016,625,100384,VISION TECHNIQUES (UK) LTD
1.01144E+15,1144,Mainline Waste Collection,60606,Bartec,81399,27/07/2016,625,100384,VISION TECHNIQUES (UK) LTD
1.01144E+15,1144,Mainline Waste Collection,60606,Bartec,82503,28/09/2016,625,100384,VISION TECHNIQUES (UK) LTD
1.01059E+15,1059,Market,60385,"Advertising, Publicity & Marketing",41434,06/09/2016,625,100087,CITY B GROUP LTD
1.01177E+15,1177,Neighbourhood Planning Referendums,60428,Ballot Paper Printing,60621,07/09/2016,621.7,100287,PRINT UK COM
1.01199E+15,1199,Bedgrove CC,60097,Reactive Property Maintenance,12355,25/08/2016,620,100030,A W R PICKERSGILL LIMITED
1.01101E+15,1101,Closed Circuit TV,60168,Monitoring,SIN081238,03/08/2016,619.75,100292,QUADRANT SECURITY GROUP LTD
1.01264E+15,1264,Housing Benefit Administration,60420,Postage,288218,31/08/2016,616.36,100567,LATCHAM DIRECT
1.01314E+15,1314,Community Sport Activation Fund,60395,Services,SLM0005922,12/09/2016,615.8,100771,EVERYONE ACTIVE-- LEISURE
1.01143E+15,1143,Business Administration Office,60011,Agency Staff,9528,18/08/2016,615.55,100335,SOUTH EAST APPRENTICESHIP COMPANY
1.01032E+15,1032,Chandos Road PC,60407,Building Cleaning Contract,33501,01/08/2016,615.21,100337,SPECIALIST HYGIENE SERVICES LTD
1.01198E+15,1198,Community Centres Administration,60035,Occupational Health,AI-375992,06/07/2016,608.25,101608,BACK IN ACTION
1.01267E+15,1267,NNDR,60141,Bailiffs Commission,170292,02/09/2016,603.07,100055,BRISTOW AND SUTOR
1.01219E+15,1218,Arts Activities,60395,Services,AV1-16,12/09/2016,600,101107,ALISON NEIL
1.01202E+15,1202,Prebendal Farm CC,60097,Reactive Property Maintenance,12326,10/07/2016,600,100030,A W R PICKERSGILL LIMITED
1.0114E+15,1140,Disabled Facility Grants,60358,Disabled Facilities Grant,S085046764,16/09/2016,600,100342,STANNAH LIFT SERVICES LIMITED
1.01261E+15,1261,Heritage,60011,Agency Staff,1001463,13/07/2016,599.75,101587,OYSTER PARTNERSHIP LTD
1.01113E+15,1113,Gateway,60435,NHS Rechargeable Costs,76683,01/07/2016,595,100628,LYNX NETWORKS
1.01256E+15,1256,Development Management,60623,IESE Development,9732,14/09/2016,592.54,100335,SOUTH EAST APPRENTICESHIP COMPANY
1.01114E+15,1113,Gateway,60104,Water,64518-30323,15/08/2016,590.5,100403,THAMES WATER UTILITIES LTD
1.01242E+15,1242,LEAP-School Games,60011,Agency Staff,1898,29/07/2016,590,101774,IMMEDIATE CARE MEDICAL SERVICES LTD
1.01267E+15,1267,NNDR,60141,Bailiffs Commission,1740351,02/09/2016,589.06,100055,BRISTOW AND SUTOR
1.01256E+15,1256,Development Management,60385,"Advertising, Publicity & Marketing",3826859,19/08/2016,586.5,100191,JOHNSTON PRESS MIDLANDS DIVISION
1.01114E+15,1113,Gateway,60104,Water,99653-75052,31/08/2016,584.9,100403,THAMES WATER UTILITIES LTD
1.01191E+15,1191,Open Spaces,60157,Hardscaping & Furniture,1925,08/08/2016,580,100252,A J NORTH CONSTRUCTION
1.01191E+15,1191,Open Spaces,60157,Hardscaping & Furniture,2326,26/08/2016,580,100075,CASWELL MAINTENANCE SERVICES LTD
1.01264E+15,1264,Housing Benefit Administration,60420,Postage,287973,31/07/2016,578.25,100567,LATCHAM DIRECT
1.01238E+15,1238,LEAP-Sportivate,60395,Services,10,29/09/2016,575,100657,AT THE EDGE PROJECT POND PARK RANGERS FC
1.01147E+15,1147,Depot/Workshop,60109,Fuel & Oil,CM 4938-16,31/08/2016,574.27,100076,CEAMD
1.01238E+15,1238,LEAP-Sportivate,60395,Services,BUCKS62,08/08/2016,570,100912,THE FIGHTING CHANCE PROJECT
1.01314E+15,1314,Community Sport Activation Fund,60395,Services,SLM0006851,16/08/2016,566.17,100133,EVERYONE ACTIVE-CONTRACT
1.01253E+15,1253,LEAP-Satellite Clubs,60395,Services,FUNDING,30/08/2016,565,100801,WYCOMBE SQUASH & RACKETBALL CLUB
1.01267E+15,1267,NNDR,60141,Bailiffs Commission,171134,23/09/2016,564.07,100055,BRISTOW AND SUTOR
1.01134E+15,1134,Carbon Management,60515,Carbon Management,LC/AA040716,31/07/2016,562.5,100626,COMPANIES CONNECTED
1.01289E+15,1289,Forward Planning,60419,Printing,52212,12/07/2016,557,100268,PELICAN PRINT & DESIGN LTD
1.01256E+15,1256,Development Management,60398,Photocopying,44008383,15/08/2016,551.11,101113,CANON UK LTD
1.01249E+15,1249,LEAP-Handball,60395,Services,AR1000138,18/07/2016,550,101501,AMERSHAM SCHOOL
1.01267E+15,1267,NNDR,60143,Profit Costs,79542,30/08/2016,550,100701,PARROTT & COALES LLP SOLICITORS
1.01123E+15,1123,Environmental Health Administration,60015,Contracted Staff,144332,16/09/2016,550,100788,5 PUMP COURT CHAMBERS
1.01202E+15,1202,Prebendal Farm CC,60097,Reactive Property Maintenance,7488,28/09/2016,548,100103,COUNTY GLASS & GLAZING
1.01268E+15,1268,Finance (Governance),60538,Debt Recovery Costs,C458944,27/08/2016,546.02,100303,ROSSENDALES
1.01264E+15,1264,Housing Benefit Administration,60219,Software Maintenance,91377210,27/09/2016,545,100251,NORTHGATE PUBLIC SERVICES UK LTD
1.01253E+15,1253,LEAP-Satellite Clubs,60395,Services,11,25/07/2016,545,100922,AFFINITY BADMINTON CLUB
1.01147E+15,1147,Depot/Workshop,60107,Vehicle & Plant Repairs & Maintenance,30668,15/08/2016,544,100386,V.O.R. SERVICES LTD
1.01197E+15,1197,District Play Services,60091,Inflatables MOT & Repair,1617023,21/07/2016,544,101794,GRAND AFFAIRS GROUP
1.01256E+15,1256,Development Management,60385,"Advertising, Publicity & Marketing",3777170,21/07/2016,540,100191,JOHNSTON PRESS MIDLANDS DIVISION
1.01143E+15,1143,Business Administration Office,60011,Agency Staff,9374,19/07/2016,538.36,100335,SOUTH EAST APPRENTICESHIP COMPANY
1.01147E+15,1147,Depot/Workshop,60030,Protective Clothing & Uniform,SI-UK-1632306,17/08/2016,533.68,100620,GREENCHEM SOLUTIONS LTD
1.01057E+15,1057,Communications & Marketing,60236,County Show,GM0345,10/09/2016,530,100581,GRAND MARQUEES
1.01221E+15,1220,Sports,60395,Services,1017,02/09/2016,525,101855,ACTIVE-IN LIMITED
1.01057E+15,1057,Communications & Marketing,60127,Marketing Strategy for the Vale,358021,31/07/2016,524.32,100229,MIX 96
1.01057E+15,1057,Communications & Marketing,60127,Marketing Strategy for the Vale,363868,31/08/2016,524.32,100229,MIX 96
1.01057E+15,1057,Communications & Marketing,60127,Marketing Strategy for the Vale,369488,30/09/2016,524.32,100229,MIX 96
1.01175E+15,1175,Parish Elections,60418,Stationery,60314,19/07/2016,522.04,100287,PRINT UK COM
1.01114E+15,1113,Gateway,60103,Gas,G4610052,19/09/2016,520.18,101169,LASER- KENT COUNTY COUNCIL
1.01219E+15,1218,Arts Activities,60395,Services,8841,04/07/2016,520,100139,MATT FOWLER PHOTOGRAPHY
1.01109E+15,1109,66 High Street,60097,Reactive Property Maintenance,13831,05/08/2016,520,100483,KEMPSON ELECTRICAL SERVICES
1.0117E+15,1170,Electoral Registration,60063,Canvas Expenses,84491,29/09/2016,515.17,100825,FCS LASERMAIL LTD
1.0127E+15,1270,IT (Support),60221,Hardware Maintenance,AR30999,11/08/2016,515,100382,XMA LIMITED
1.01113E+15,1113,Gateway,60184,"Furniture, Fittings & Equipment",AR32782,11/08/2016,515,100382,XMA LIMITED
1.01144E+15,1144,Mainline Waste Collection,60030,Protective Clothing & Uniform,341479,08/09/2016,511.6,100549,MAINMAN SUPPLIES LTD
1.01267E+15,1267,NNDR,60517,Insolvency,79158,12/07/2016,510.5,100701,PARROTT & COALES LLP SOLICITORS
1.01267E+15,1267,NNDR,60141,Bailiffs Commission,169025,29/07/2016,504.83,100055,BRISTOW AND SUTOR
1.01036E+15,1036,Parking Services Administration,60131,NPAS,6885,02/08/2016,503.6,100267,PATROL
1.01253E+15,1253,LEAP-Satellite Clubs,60011,Agency Staff,2068,30/08/2016,503,100656,NIGEL WILLARD TENNIS
1.01267E+15,1267,NNDR,60141,Bailiffs Commission,169541,25/08/2016,502.97,100055,BRISTOW AND SUTOR
